{"text_format":"3","workbook":"xlsx","n_sheets":6,"sheets":["Tabuľa","Predaj","Príjmy","Výdavky","Dane","Kategórie"],"not_rendered":{"images":1,"defined_names":34},"read":"whole","date_system":"1900"}

{"sheet":"Tabuľa","index":0,"n_rows":19,"n_cols":8,"rows_kept":19,"merged":[[0,2,0,4],[0,6,3,7],[4,1,4,7]]}
[null,"Výkaz ziskov a strát","Ku koncu [mesiac alebo rok] [mesiac – deň – rok]"]
[null,"Názov spoločnosti","Uvádza sa v tisícoch"]
[null,"Aktuálna hrubá marža [L/J]",{"$f":"IFERROR(IF(Celkový_hrubý_zisk=0,\"-\",Celkový_hrubý_zisk/Celková_tržba_z_predaja),\"-\")","v":"-"}]
[null,"Aktuálna rentabilita tržieb (ROS) [T/J]",{"$f":"IFERROR(IF(Čistý_zisk=0,\"-\",Čistý_zisk/Celková_tržba_z_predaja),\"-\")","v":"-"}]
[null,"Nemeňte kategórie v tomto hárku, inak môžu vzorce prestať fungovať. Na pridanie kategórií a aktualizáciu príslušných hárkov so záznamami použite hárok Kategórie. Tento hárok sa automaticky aktualizuje."]
[null,"Súhrn","Celkovo za predchádzajúce obdobie","Celkový rozpočet","Celkovo za aktuálne\nobdobie","Aktuálne obdobie celkovo ako % z predaja","Celková percentuálna zmena oproti predchádzajúcemu obdobiu","Celková percentuálna zmena oproti rozpočtu"]
[null,"Celkové tržby z predaja  [J]",{"$f":"SUMIFS(TržbyZPredaja[Predchádzajúce obdobie],TržbyZPredaja[Typ tržby],\"Tržby z predaja\")","v":0},{"$f":"SUMIFS(TržbyZPredaja[Rozpočet],TržbyZPredaja[Typ tržby],\"Tržby z predaja\")","v":0},{"$f":"SUMIFS(TržbyZPredaja[Aktuálne obdobie],TržbyZPredaja[Typ tržby],\"Tržby z predaja\")","v":0},{"$f":"SUMIFS(TržbyZPredaja[Aktuálne obdobie ako % z predaja],TržbyZPredaja[Typ tržby],\"Tržby z predaja\")","v":{"v":0,"d":"0.00%"}},{"$f":"SUMIFS(TržbyZPredaja[Percentuálna zmena oproti predchádzajúcemu obdobiu],TržbyZPredaja[Typ tržby],\"Tržby z predaja\")","v":{"v":0,"d":"0.00%"}},{"$f":"SUMIFS(TržbyZPredaja[Percentuálna zmena oproti rozpočtu],TržbyZPredaja[Typ tržby],\"Tržby z predaja\")","v":{"v":0,"d":"0.00%"}}]
[null,"Celkové náklady na predaj  [K]",{"$f":"SUMIFS(TržbyZPredaja[Predchádzajúce obdobie],TržbyZPredaja[Typ tržby],\"Náklady na predaj\")","v":0},{"$f":"SUMIFS(TržbyZPredaja[Rozpočet],TržbyZPredaja[Typ tržby],\"Náklady na predaj\")","v":0},{"$f":"SUMIFS(TržbyZPredaja[Aktuálne obdobie],TržbyZPredaja[Typ tržby],\"Náklady na predaj\")","v":0},{"$f":"SUMIFS(TržbyZPredaja[Aktuálne obdobie ako % z predaja],TržbyZPredaja[Typ tržby],\"Náklady na predaj\")","v":{"v":0,"d":"0.00%"}},{"$f":"SUMIFS(TržbyZPredaja[Percentuálna zmena oproti predchádzajúcemu obdobiu],TržbyZPredaja[Typ tržby],\"Náklady na predaj\")","v":{"v":0,"d":"0.00%"}},{"$f":"SUMIFS(TržbyZPredaja[Percentuálna zmena oproti rozpočtu],TržbyZPredaja[Typ tržby],\"Náklady na predaj\")","v":{"v":0,"d":"0.00%"}}]
[null,"Celkové náklady na predaj a marketing  [M]",{"$f":"SUMIFS(PrevádzkovéNáklady[Predchádzajúce obdobie],PrevádzkovéNáklady[Typ výdavku],\"Predaj a marketing\")","v":0},{"$f":"SUMIFS(PrevádzkovéNáklady[Rozpočet],PrevádzkovéNáklady[Typ výdavku],\"Predaj a marketing\")","v":0},{"$f":"SUMIFS(PrevádzkovéNáklady[Aktuálne obdobie],PrevádzkovéNáklady[Typ výdavku],\"Predaj a marketing\")","v":0},{"$f":"SUMIFS(PrevádzkovéNáklady[Aktuálne obdobie ako % z predaja],PrevádzkovéNáklady[Typ výdavku],\"Predaj a marketing\")","v":{"v":0,"d":"0.00%"}},{"$f":"SUMIFS(PrevádzkovéNáklady[Percentuálna zmena oproti predchádzajúcemu obdobiu],PrevádzkovéNáklady[Typ výdavku],\"Predaj a marketing\")","v":{"v":0,"d":"0.00%"}},{"$f":"SUMIFS(PrevádzkovéNáklady[Percentuálna zmena oproti rozpočtu],PrevádzkovéNáklady[Typ výdavku],\"Predaj a marketing\")","v":{"v":0,"d":"0.00%"}}]
[null,"Náklady na výskum a vývoj  [N]",{"$f":"SUMIFS(PrevádzkovéNáklady[Predchádzajúce obdobie],PrevádzkovéNáklady[Typ výdavku],\"Výskum a vývoj\")","v":0},{"$f":"SUMIFS(PrevádzkovéNáklady[Rozpočet],PrevádzkovéNáklady[Typ výdavku],\"Výskum a vývoj\")","v":0},{"$f":"SUMIFS(PrevádzkovéNáklady[Aktuálne obdobie],PrevádzkovéNáklady[Typ výdavku],\"Výskum a vývoj\")","v":0},{"$f":"SUMIFS(PrevádzkovéNáklady[Aktuálne obdobie ako % z predaja],PrevádzkovéNáklady[Typ výdavku],\"Výskum a vývoj\")","v":{"v":0,"d":"0.00%"}},{"$f":"SUMIFS(PrevádzkovéNáklady[Percentuálna zmena oproti predchádzajúcemu obdobiu],PrevádzkovéNáklady[Typ výdavku],\"Výskum a vývoj\")","v":{"v":0,"d":"0.00%"}},{"$f":"SUMIFS(PrevádzkovéNáklady[Percentuálna zmena oproti rozpočtu],PrevádzkovéNáklady[Typ výdavku],\"Výskum a vývoj\")","v":{"v":0,"d":"0.00%"}}]
[null,"Všeobecné a administratíve výdavky  [O]",{"$f":"SUMIFS(PrevádzkovéNáklady[Predchádzajúce obdobie],PrevádzkovéNáklady[Typ výdavku],\"Všeobecné a administratíva\")","v":0},{"$f":"SUMIFS(PrevádzkovéNáklady[Rozpočet],PrevádzkovéNáklady[Typ výdavku],\"Všeobecné a administratíva\")","v":0},{"$f":"SUMIFS(PrevádzkovéNáklady[Aktuálne obdobie],PrevádzkovéNáklady[Typ výdavku],\"Všeobecné a administratíva\")","v":0},{"$f":"SUMIFS(PrevádzkovéNáklady[Aktuálne obdobie ako % z predaja],PrevádzkovéNáklady[Typ výdavku],\"Všeobecné a administratíva\")","v":{"v":0,"d":"0.00%"}},{"$f":"SUMIFS(PrevádzkovéNáklady[Percentuálna zmena oproti predchádzajúcemu obdobiu],PrevádzkovéNáklady[Typ výdavku],\"Všeobecné a administratíva\")","v":{"v":0,"d":"0.00%"}},{"$f":"SUMIFS(PrevádzkovéNáklady[Percentuálna zmena oproti rozpočtu],PrevádzkovéNáklady[Typ výdavku],\"Všeobecné a administratíva\")","v":{"v":0,"d":"0.00%"}}]
[null,"Celkové iné prevádzkové náklady [P]",{"$f":"PrevádzkovéNáklady[[#Totals],[Predchádzajúce obdobie]]-SUM(C9:C11)","v":0},{"$f":"PrevádzkovéNáklady[[#Totals],[Rozpočet]]-SUM(D9:D11)","v":0},{"$f":"PrevádzkovéNáklady[[#Totals],[Aktuálne obdobie]]-SUM(E9:E11)","v":0},{"$f":"PrevádzkovéNáklady[[#Totals],[Aktuálne obdobie ako % z predaja]]-SUM(F9:F11)","v":{"v":0,"d":"0.00%"}},{"$f":"PrevádzkovéNáklady[[#Totals],[Percentuálna zmena oproti predchádzajúcemu obdobiu]]-SUM(G9:G11)","v":{"v":0,"d":"0.00%"}},{"$f":"PrevádzkovéNáklady[[#Totals],[Percentuálna zmena oproti rozpočtu]]-SUM(H9:H11)","v":{"v":0,"d":"0.00%"}}]
[null,"Iné príjmy  [S]",{"$f":"Príjmy[[#Totals],[Predchádzajúce obdobie]]","v":0},{"$f":"Príjmy[[#Totals],[Rozpočet]]","v":0},{"$f":"Príjmy[[#Totals],[Aktuálne obdobie]]","v":0},{"$f":"Príjmy[[#Totals],[Aktuálne obdobie ako % z predaja]]","v":{"v":0,"d":"0.00%"}},{"$f":"Príjmy[[#Totals],[Percentuálna zmena oproti predchádzajúcemu obdobiu]]","v":{"v":0,"d":"0.00%"}},{"$f":"Príjmy[[#Totals],[Percentuálna zmena oproti rozpočtu]]","v":{"v":0,"d":"0.00%"}}]
[null,"Súčet daní  [T]",{"$f":"Dane[[#Totals],[Predchádzajúce obdobie]]","v":0},{"$f":"Dane[[#Totals],[Rozpočet]]","v":0},{"$f":"Dane[[#Totals],[Aktuálne obdobie]]","v":0},{"$f":"Dane[[#Totals],[Aktuálne obdobie ako % z predaja]]","v":{"v":0,"d":"0.00%"}},{"$f":"Dane[[#Totals],[Percentuálna zmena oproti predchádzajúcemu obdobiu]]","v":{"v":0,"d":"0.00%"}},{"$f":"Dane[[#Totals],[Percentuálna zmena oproti rozpočtu]]","v":{"v":0,"d":"0.00%"}}]
[]
[null,"Hrubý zisk  [L = J - K]",{"$f":"IFERROR(C7-C8,\"-\")","v":0},{"$f":"IFERROR(D7-D8,\"-\")","v":0},{"$f":"IFERROR(Celková_tržba_z_predaja-Celkové_náklady_na_predaj,\"-\")","v":0},{"$f":"IFERROR(IF(Celková_tržba_z_predaja=0,\"0,00%\",Celkový_hrubý_zisk/Celková_tržba_z_predaja),\"-\")","v":"0,00%"},{"$f":"IFERROR(IF(C16=Celkový_hrubý_zisk,0,IF(Celkový_hrubý_zisk>C16,ABS((Celkový_hrubý_zisk/C16)-1),IF(AND(Celkový_hrubý_zisk<C16,C16<0),-((Celkový_hrubý_zisk/C16)-1),(Celkový_hrubý_zisk/C16)-1))),\"-\")","v":{"v":0,"d":"0.00%"}},{"$f":"IFERROR(IF(D16=Celkový_hrubý_zisk,0,IF(Celkový_hrubý_zisk>D16,ABS((Celkový_hrubý_zisk/D16)-1),IF(AND(Celkový_hrubý_zisk<D16,D16<0),-((Celkový_hrubý_zisk/D16)-1),(Celkový_hrubý_zisk/D16)-1))),\"-\")","v":{"v":0,"d":"0.00%"}}]
[null,"Celkové prevádzkové náklady  [Q = M + N + O + P]",{"$f":"IFERROR(C9+C10+C11+C12,\"-\")","v":0},{"$f":"IFERROR(D9+D10+D11+D12,\"-\")","v":0},{"$f":"IFERROR(Celkovo_za_predaj_a_marketing+Celkovo_za_výskum_a_vývoj+Všeobecné_a_administratíve+Celkové_iné_náklady,\"-\")","v":0},{"$f":"IFERROR(IF(Celková_tržba_z_predaja=0,\"0,00%\",Celkové_náklady_na_prevádzku/Celková_tržba_z_predaja),\"-\")","v":"0,00%"},{"$f":"IFERROR(IF(C17=Celkové_náklady_na_prevádzku,0,IF(Celkové_náklady_na_prevádzku>C17,ABS((Celkové_náklady_na_prevádzku/C17)-1),IF(AND(Celkové_náklady_na_prevádzku<C17,C17<0),-((Celkové_náklady_na_prevádzku/C17)-1),(Celkové_náklady_na_prevádzku/C17)-1))),\"-\")","v":{"v":0,"d":"0.00%"}},{"$f":"IFERROR(IF(D17=Celkové_náklady_na_prevádzku,0,IF(Celkové_náklady_na_prevádzku>D17,ABS((Celkové_náklady_na_prevádzku/D17)-1),IF(AND(Celkové_náklady_na_prevádzku<D17,D17<0),-((Celkové_náklady_na_prevádzku/D17)-1),(Celkové_náklady_na_prevádzku/D17)-1))),\"-\")","v":{"v":0,"d":"0.00%"}}]
[null,"Príjmy z hospodárskej činnosti  [R = L - Q]",{"$f":"IFERROR(C16-C17,\"-\")","v":0},{"$f":"IFERROR(D16-D17,\"-\")","v":0},{"$f":"IFERROR(Celkový_hrubý_zisk-Celkové_náklady_na_prevádzku,\"-\")","v":0},{"$f":"IFERROR(IF(Celková_tržba_z_predaja=0,\"0,00%\",Celkový_príjem_z_prevádzky/Celková_tržba_z_predaja),\"-\")","v":"0,00%"},{"$f":"IFERROR(IF(C18=Celkový_príjem_z_prevádzky,0,IF(Celkový_príjem_z_prevádzky>C18,ABS((Celkový_príjem_z_prevádzky/C18)-1),IF(AND(Celkový_príjem_z_prevádzky<C18,C18<0),-((Celkový_príjem_z_prevádzky/C18)-1),(Celkový_príjem_z_prevádzky/C18)-1))),\"-\")","v":{"v":0,"d":"0.00%"}},{"$f":"IFERROR(IF(D18=Celkový_príjem_z_prevádzky,0,IF(Celkový_príjem_z_prevádzky>D18,ABS((Celkový_príjem_z_prevádzky/D18)-1),IF(AND(Celkový_príjem_z_prevádzky<D18,D18<0),-((Celkový_príjem_z_prevádzky/D18)-1),(Celkový_príjem_z_prevádzky/D18)-1))),\"-\")","v":{"v":0,"d":"0.00%"}}]
[null,"Čistý zisk [U = R + S - T]",{"$f":"IFERROR(C18+C13-C14,\"-\")","v":0},{"$f":"IFERROR(D18+D13-D14,\"-\")","v":0},{"$f":"Celkový_príjem_z_prevádzky+Celkový_iný_príjem-Dane_celkom","v":0},{"$f":"IFERROR(IF(Celková_tržba_z_predaja=0,\"0,00%\",Čistý_zisk/Celková_tržba_z_predaja),\"-\")","v":"0,00%"},{"$f":"IFERROR(IF(C19=Čistý_zisk,0,IF(Čistý_zisk>C19,ABS((Čistý_zisk/C19)-1),IF(AND(Čistý_zisk<C19,C19<0),-((Čistý_zisk/C19)-1),(Čistý_zisk/C19)-1))),\"-\")","v":{"v":0,"d":"0.00%"}},{"$f":"IFERROR(IF(D19=Čistý_zisk,0,IF(Čistý_zisk>D19,ABS((Čistý_zisk/D19)-1),IF(AND(Čistý_zisk<D19,D19<0),-((Čistý_zisk/D19)-1),(Čistý_zisk/D19)-1))),\"-\")","v":{"v":0,"d":"0.00%"}}]

{"sheet":"Predaj","index":1,"n_rows":13,"n_cols":9,"rows_kept":13,"merged":[[0,7,2,8]]}
[null,{"$f":"Názov_Zošita","v":"Výkaz ziskov a strát"}]
[null,{"$f":"Názov_spoločnosti","v":"Názov spoločnosti"},"Uvádza sa v tisícoch"]
[null,"Tržby z predaja",{"$f":"IFERROR(Tržby_z_predaja,\"-\")","v":0}]
[null,"Typ tržby","Popis","Predchádzajúce obdobie","Rozpočet","Aktuálne obdobie","Aktuálne obdobie ako % z predaja","Percentuálna zmena oproti predchádzajúcemu obdobiu","Percentuálna zmena oproti rozpočtu"]
[null,"Tržby z predaja","Produkt/služba 1",{"$nulls":3},{"$f":"IFERROR(IF(TržbyZPredaja[[#Data],[#Totals],[Aktuálne obdobie]]=0,\"-\",TržbyZPredaja[Aktuálne obdobie]/Tržby_z_predaja),\"-\")","v":"-"},{"$f":"IFERROR(IF(TržbyZPredaja[[#This Row],[Predchádzajúce obdobie]]=TržbyZPredaja[[#This Row],[Aktuálne obdobie]],0,IF(TržbyZPredaja[[#This Row],[Aktuálne obdobie]]>TržbyZPredaja[[#This Row],[Predchádzajúce obdobie]],ABS((TržbyZPredaja[[#This Row],[Aktuálne obdobie]]/TržbyZPredaja[[#This Row],[Predchádzajúce obdobie]])-1),IF(AND(TržbyZPredaja[[#This Row],[Aktuálne obdobie]]<TržbyZPredaja[[#This Row],[Predchádzajúce obdobie]],TržbyZPredaja[[#This Row],[Predchádzajúce obdobie]]<0),-((TržbyZPredaja[[#This Row],[Aktuálne obdobie]]/TržbyZPredaja[[#This Row],[Predchádzajúce obdobie]])-1),(TržbyZPredaja[[#This Row],[Aktuálne obdobie]]/TržbyZPredaja[[#This Row],[Predchádzajúce obdobie]])-1))),\"-\")","v":{"v":0,"d":"0.00%"}},{"$f":"IFERROR(IF(TržbyZPredaja[[#This Row],[Rozpočet]]=TržbyZPredaja[[#This Row],[Aktuálne obdobie]],0,IF(TržbyZPredaja[[#This Row],[Aktuálne obdobie]]>TržbyZPredaja[[#This Row],[Rozpočet]],ABS((TržbyZPredaja[[#This Row],[Aktuálne obdobie]]/TržbyZPredaja[[#This Row],[Rozpočet]])-1),IF(AND(TržbyZPredaja[[#This Row],[Aktuálne obdobie]]<TržbyZPredaja[[#This Row],[Rozpočet]],TržbyZPredaja[[#This Row],[Rozpočet]]<0),-((TržbyZPredaja[[#This Row],[Aktuálne obdobie]]/TržbyZPredaja[[#This Row],[Rozpočet]])-1),(TržbyZPredaja[[#This Row],[Aktuálne obdobie]]/TržbyZPredaja[[#This Row],[Rozpočet]])-1))),\"-\")","v":{"v":0,"d":"0.00%"}}]
[null,"Tržby z predaja","Produkt/služba 2",{"$nulls":3},{"$f":"IFERROR(IF(TržbyZPredaja[[#Data],[#Totals],[Aktuálne obdobie]]=0,\"-\",TržbyZPredaja[Aktuálne obdobie]/Tržby_z_predaja),\"-\")","v":"-"},{"$f":"IFERROR(IF(TržbyZPredaja[[#This Row],[Predchádzajúce obdobie]]=TržbyZPredaja[[#This Row],[Aktuálne obdobie]],0,IF(TržbyZPredaja[[#This Row],[Aktuálne obdobie]]>TržbyZPredaja[[#This Row],[Predchádzajúce obdobie]],ABS((TržbyZPredaja[[#This Row],[Aktuálne obdobie]]/TržbyZPredaja[[#This Row],[Predchádzajúce obdobie]])-1),IF(AND(TržbyZPredaja[[#This Row],[Aktuálne obdobie]]<TržbyZPredaja[[#This Row],[Predchádzajúce obdobie]],TržbyZPredaja[[#This Row],[Predchádzajúce obdobie]]<0),-((TržbyZPredaja[[#This Row],[Aktuálne obdobie]]/TržbyZPredaja[[#This Row],[Predchádzajúce obdobie]])-1),(TržbyZPredaja[[#This Row],[Aktuálne obdobie]]/TržbyZPredaja[[#This Row],[Predchádzajúce obdobie]])-1))),\"-\")","v":{"v":0,"d":"0.00%"}},{"$f":"IFERROR(IF(TržbyZPredaja[[#This Row],[Rozpočet]]=TržbyZPredaja[[#This Row],[Aktuálne obdobie]],0,IF(TržbyZPredaja[[#This Row],[Aktuálne obdobie]]>TržbyZPredaja[[#This Row],[Rozpočet]],ABS((TržbyZPredaja[[#This Row],[Aktuálne obdobie]]/TržbyZPredaja[[#This Row],[Rozpočet]])-1),IF(AND(TržbyZPredaja[[#This Row],[Aktuálne obdobie]]<TržbyZPredaja[[#This Row],[Rozpočet]],TržbyZPredaja[[#This Row],[Rozpočet]]<0),-((TržbyZPredaja[[#This Row],[Aktuálne obdobie]]/TržbyZPredaja[[#This Row],[Rozpočet]])-1),(TržbyZPredaja[[#This Row],[Aktuálne obdobie]]/TržbyZPredaja[[#This Row],[Rozpočet]])-1))),\"-\")","v":{"v":0,"d":"0.00%"}}]
[null,"Tržby z predaja","Produkt/služba 3",{"$nulls":3},{"$f":"IFERROR(IF(TržbyZPredaja[[#Data],[#Totals],[Aktuálne obdobie]]=0,\"-\",TržbyZPredaja[Aktuálne obdobie]/Tržby_z_predaja),\"-\")","v":"-"},{"$f":"IFERROR(IF(TržbyZPredaja[[#This Row],[Predchádzajúce obdobie]]=TržbyZPredaja[[#This Row],[Aktuálne obdobie]],0,IF(TržbyZPredaja[[#This Row],[Aktuálne obdobie]]>TržbyZPredaja[[#This Row],[Predchádzajúce obdobie]],ABS((TržbyZPredaja[[#This Row],[Aktuálne obdobie]]/TržbyZPredaja[[#This Row],[Predchádzajúce obdobie]])-1),IF(AND(TržbyZPredaja[[#This Row],[Aktuálne obdobie]]<TržbyZPredaja[[#This Row],[Predchádzajúce obdobie]],TržbyZPredaja[[#This Row],[Predchádzajúce obdobie]]<0),-((TržbyZPredaja[[#This Row],[Aktuálne obdobie]]/TržbyZPredaja[[#This Row],[Predchádzajúce obdobie]])-1),(TržbyZPredaja[[#This Row],[Aktuálne obdobie]]/TržbyZPredaja[[#This Row],[Predchádzajúce obdobie]])-1))),\"-\")","v":{"v":0,"d":"0.00%"}},{"$f":"IFERROR(IF(TržbyZPredaja[[#This Row],[Rozpočet]]=TržbyZPredaja[[#This Row],[Aktuálne obdobie]],0,IF(TržbyZPredaja[[#This Row],[Aktuálne obdobie]]>TržbyZPredaja[[#This Row],[Rozpočet]],ABS((TržbyZPredaja[[#This Row],[Aktuálne obdobie]]/TržbyZPredaja[[#This Row],[Rozpočet]])-1),IF(AND(TržbyZPredaja[[#This Row],[Aktuálne obdobie]]<TržbyZPredaja[[#This Row],[Rozpočet]],TržbyZPredaja[[#This Row],[Rozpočet]]<0),-((TržbyZPredaja[[#This Row],[Aktuálne obdobie]]/TržbyZPredaja[[#This Row],[Rozpočet]])-1),(TržbyZPredaja[[#This Row],[Aktuálne obdobie]]/TržbyZPredaja[[#This Row],[Rozpočet]])-1))),\"-\")","v":{"v":0,"d":"0.00%"}}]
[null,"Tržby z predaja","Produkt/služba 4",{"$nulls":3},{"$f":"IFERROR(IF(TržbyZPredaja[[#Data],[#Totals],[Aktuálne obdobie]]=0,\"-\",TržbyZPredaja[Aktuálne obdobie]/Tržby_z_predaja),\"-\")","v":"-"},{"$f":"IFERROR(IF(TržbyZPredaja[[#This Row],[Predchádzajúce obdobie]]=TržbyZPredaja[[#This Row],[Aktuálne obdobie]],0,IF(TržbyZPredaja[[#This Row],[Aktuálne obdobie]]>TržbyZPredaja[[#This Row],[Predchádzajúce obdobie]],ABS((TržbyZPredaja[[#This Row],[Aktuálne obdobie]]/TržbyZPredaja[[#This Row],[Predchádzajúce obdobie]])-1),IF(AND(TržbyZPredaja[[#This Row],[Aktuálne obdobie]]<TržbyZPredaja[[#This Row],[Predchádzajúce obdobie]],TržbyZPredaja[[#This Row],[Predchádzajúce obdobie]]<0),-((TržbyZPredaja[[#This Row],[Aktuálne obdobie]]/TržbyZPredaja[[#This Row],[Predchádzajúce obdobie]])-1),(TržbyZPredaja[[#This Row],[Aktuálne obdobie]]/TržbyZPredaja[[#This Row],[Predchádzajúce obdobie]])-1))),\"-\")","v":{"v":0,"d":"0.00%"}},{"$f":"IFERROR(IF(TržbyZPredaja[[#This Row],[Rozpočet]]=TržbyZPredaja[[#This Row],[Aktuálne obdobie]],0,IF(TržbyZPredaja[[#This Row],[Aktuálne obdobie]]>TržbyZPredaja[[#This Row],[Rozpočet]],ABS((TržbyZPredaja[[#This Row],[Aktuálne obdobie]]/TržbyZPredaja[[#This Row],[Rozpočet]])-1),IF(AND(TržbyZPredaja[[#This Row],[Aktuálne obdobie]]<TržbyZPredaja[[#This Row],[Rozpočet]],TržbyZPredaja[[#This Row],[Rozpočet]]<0),-((TržbyZPredaja[[#This Row],[Aktuálne obdobie]]/TržbyZPredaja[[#This Row],[Rozpočet]])-1),(TržbyZPredaja[[#This Row],[Aktuálne obdobie]]/TržbyZPredaja[[#This Row],[Rozpočet]])-1))),\"-\")","v":{"v":0,"d":"0.00%"}}]
[null,"Náklady na predaj","Produkt/služba 1",{"$nulls":3},{"$f":"IFERROR(IF(TržbyZPredaja[[#Data],[#Totals],[Aktuálne obdobie]]=0,\"-\",TržbyZPredaja[Aktuálne obdobie]/Tržby_z_predaja),\"-\")","v":"-"},{"$f":"IFERROR(IF(TržbyZPredaja[[#This Row],[Predchádzajúce obdobie]]=TržbyZPredaja[[#This Row],[Aktuálne obdobie]],0,IF(TržbyZPredaja[[#This Row],[Aktuálne obdobie]]>TržbyZPredaja[[#This Row],[Predchádzajúce obdobie]],ABS((TržbyZPredaja[[#This Row],[Aktuálne obdobie]]/TržbyZPredaja[[#This Row],[Predchádzajúce obdobie]])-1),IF(AND(TržbyZPredaja[[#This Row],[Aktuálne obdobie]]<TržbyZPredaja[[#This Row],[Predchádzajúce obdobie]],TržbyZPredaja[[#This Row],[Predchádzajúce obdobie]]<0),-((TržbyZPredaja[[#This Row],[Aktuálne obdobie]]/TržbyZPredaja[[#This Row],[Predchádzajúce obdobie]])-1),(TržbyZPredaja[[#This Row],[Aktuálne obdobie]]/TržbyZPredaja[[#This Row],[Predchádzajúce obdobie]])-1))),\"-\")","v":{"v":0,"d":"0.00%"}},{"$f":"IFERROR(IF(TržbyZPredaja[[#This Row],[Rozpočet]]=TržbyZPredaja[[#This Row],[Aktuálne obdobie]],0,IF(TržbyZPredaja[[#This Row],[Aktuálne obdobie]]>TržbyZPredaja[[#This Row],[Rozpočet]],ABS((TržbyZPredaja[[#This Row],[Aktuálne obdobie]]/TržbyZPredaja[[#This Row],[Rozpočet]])-1),IF(AND(TržbyZPredaja[[#This Row],[Aktuálne obdobie]]<TržbyZPredaja[[#This Row],[Rozpočet]],TržbyZPredaja[[#This Row],[Rozpočet]]<0),-((TržbyZPredaja[[#This Row],[Aktuálne obdobie]]/TržbyZPredaja[[#This Row],[Rozpočet]])-1),(TržbyZPredaja[[#This Row],[Aktuálne obdobie]]/TržbyZPredaja[[#This Row],[Rozpočet]])-1))),\"-\")","v":{"v":0,"d":"0.00%"}}]
[null,"Náklady na predaj","Produkt/služba 2",{"$nulls":3},{"$f":"IFERROR(IF(TržbyZPredaja[[#Data],[#Totals],[Aktuálne obdobie]]=0,\"-\",TržbyZPredaja[Aktuálne obdobie]/Tržby_z_predaja),\"-\")","v":"-"},{"$f":"IFERROR(IF(TržbyZPredaja[[#This Row],[Predchádzajúce obdobie]]=TržbyZPredaja[[#This Row],[Aktuálne obdobie]],0,IF(TržbyZPredaja[[#This Row],[Aktuálne obdobie]]>TržbyZPredaja[[#This Row],[Predchádzajúce obdobie]],ABS((TržbyZPredaja[[#This Row],[Aktuálne obdobie]]/TržbyZPredaja[[#This Row],[Predchádzajúce obdobie]])-1),IF(AND(TržbyZPredaja[[#This Row],[Aktuálne obdobie]]<TržbyZPredaja[[#This Row],[Predchádzajúce obdobie]],TržbyZPredaja[[#This Row],[Predchádzajúce obdobie]]<0),-((TržbyZPredaja[[#This Row],[Aktuálne obdobie]]/TržbyZPredaja[[#This Row],[Predchádzajúce obdobie]])-1),(TržbyZPredaja[[#This Row],[Aktuálne obdobie]]/TržbyZPredaja[[#This Row],[Predchádzajúce obdobie]])-1))),\"-\")","v":{"v":0,"d":"0.00%"}},{"$f":"IFERROR(IF(TržbyZPredaja[[#This Row],[Rozpočet]]=TržbyZPredaja[[#This Row],[Aktuálne obdobie]],0,IF(TržbyZPredaja[[#This Row],[Aktuálne obdobie]]>TržbyZPredaja[[#This Row],[Rozpočet]],ABS((TržbyZPredaja[[#This Row],[Aktuálne obdobie]]/TržbyZPredaja[[#This Row],[Rozpočet]])-1),IF(AND(TržbyZPredaja[[#This Row],[Aktuálne obdobie]]<TržbyZPredaja[[#This Row],[Rozpočet]],TržbyZPredaja[[#This Row],[Rozpočet]]<0),-((TržbyZPredaja[[#This Row],[Aktuálne obdobie]]/TržbyZPredaja[[#This Row],[Rozpočet]])-1),(TržbyZPredaja[[#This Row],[Aktuálne obdobie]]/TržbyZPredaja[[#This Row],[Rozpočet]])-1))),\"-\")","v":{"v":0,"d":"0.00%"}}]
[null,"Náklady na predaj","Produkt/služba 3",{"$nulls":3},{"$f":"IFERROR(IF(TržbyZPredaja[[#Data],[#Totals],[Aktuálne obdobie]]=0,\"-\",TržbyZPredaja[Aktuálne obdobie]/Tržby_z_predaja),\"-\")","v":"-"},{"$f":"IFERROR(IF(TržbyZPredaja[[#This Row],[Predchádzajúce obdobie]]=TržbyZPredaja[[#This Row],[Aktuálne obdobie]],0,IF(TržbyZPredaja[[#This Row],[Aktuálne obdobie]]>TržbyZPredaja[[#This Row],[Predchádzajúce obdobie]],ABS((TržbyZPredaja[[#This Row],[Aktuálne obdobie]]/TržbyZPredaja[[#This Row],[Predchádzajúce obdobie]])-1),IF(AND(TržbyZPredaja[[#This Row],[Aktuálne obdobie]]<TržbyZPredaja[[#This Row],[Predchádzajúce obdobie]],TržbyZPredaja[[#This Row],[Predchádzajúce obdobie]]<0),-((TržbyZPredaja[[#This Row],[Aktuálne obdobie]]/TržbyZPredaja[[#This Row],[Predchádzajúce obdobie]])-1),(TržbyZPredaja[[#This Row],[Aktuálne obdobie]]/TržbyZPredaja[[#This Row],[Predchádzajúce obdobie]])-1))),\"-\")","v":{"v":0,"d":"0.00%"}},{"$f":"IFERROR(IF(TržbyZPredaja[[#This Row],[Rozpočet]]=TržbyZPredaja[[#This Row],[Aktuálne obdobie]],0,IF(TržbyZPredaja[[#This Row],[Aktuálne obdobie]]>TržbyZPredaja[[#This Row],[Rozpočet]],ABS((TržbyZPredaja[[#This Row],[Aktuálne obdobie]]/TržbyZPredaja[[#This Row],[Rozpočet]])-1),IF(AND(TržbyZPredaja[[#This Row],[Aktuálne obdobie]]<TržbyZPredaja[[#This Row],[Rozpočet]],TržbyZPredaja[[#This Row],[Rozpočet]]<0),-((TržbyZPredaja[[#This Row],[Aktuálne obdobie]]/TržbyZPredaja[[#This Row],[Rozpočet]])-1),(TržbyZPredaja[[#This Row],[Aktuálne obdobie]]/TržbyZPredaja[[#This Row],[Rozpočet]])-1))),\"-\")","v":{"v":0,"d":"0.00%"}}]
[null,"Náklady na predaj","Produkt/služba 4",{"$nulls":3},{"$f":"IFERROR(IF(TržbyZPredaja[[#Data],[#Totals],[Aktuálne obdobie]]=0,\"-\",TržbyZPredaja[Aktuálne obdobie]/Tržby_z_predaja),\"-\")","v":"-"},{"$f":"IFERROR(IF(TržbyZPredaja[[#This Row],[Predchádzajúce obdobie]]=TržbyZPredaja[[#This Row],[Aktuálne obdobie]],0,IF(TržbyZPredaja[[#This Row],[Aktuálne obdobie]]>TržbyZPredaja[[#This Row],[Predchádzajúce obdobie]],ABS((TržbyZPredaja[[#This Row],[Aktuálne obdobie]]/TržbyZPredaja[[#This Row],[Predchádzajúce obdobie]])-1),IF(AND(TržbyZPredaja[[#This Row],[Aktuálne obdobie]]<TržbyZPredaja[[#This Row],[Predchádzajúce obdobie]],TržbyZPredaja[[#This Row],[Predchádzajúce obdobie]]<0),-((TržbyZPredaja[[#This Row],[Aktuálne obdobie]]/TržbyZPredaja[[#This Row],[Predchádzajúce obdobie]])-1),(TržbyZPredaja[[#This Row],[Aktuálne obdobie]]/TržbyZPredaja[[#This Row],[Predchádzajúce obdobie]])-1))),\"-\")","v":{"v":0,"d":"0.00%"}},{"$f":"IFERROR(IF(TržbyZPredaja[[#This Row],[Rozpočet]]=TržbyZPredaja[[#This Row],[Aktuálne obdobie]],0,IF(TržbyZPredaja[[#This Row],[Aktuálne obdobie]]>TržbyZPredaja[[#This Row],[Rozpočet]],ABS((TržbyZPredaja[[#This Row],[Aktuálne obdobie]]/TržbyZPredaja[[#This Row],[Rozpočet]])-1),IF(AND(TržbyZPredaja[[#This Row],[Aktuálne obdobie]]<TržbyZPredaja[[#This Row],[Rozpočet]],TržbyZPredaja[[#This Row],[Rozpočet]]<0),-((TržbyZPredaja[[#This Row],[Aktuálne obdobie]]/TržbyZPredaja[[#This Row],[Rozpočet]])-1),(TržbyZPredaja[[#This Row],[Aktuálne obdobie]]/TržbyZPredaja[[#This Row],[Rozpočet]])-1))),\"-\")","v":{"v":0,"d":"0.00%"}}]
[null,"Celkové tržby z predaja",null,{"$f":"SUBTOTAL(109,TržbyZPredaja[Predchádzajúce obdobie])","v":0},{"$f":"SUBTOTAL(109,TržbyZPredaja[Rozpočet])","v":0},{"$f":"SUBTOTAL(109,TržbyZPredaja[Aktuálne obdobie])","v":0},{"$f":"SUBTOTAL(109,TržbyZPredaja[Aktuálne obdobie ako % z predaja])","v":{"v":0,"d":"0.00%"}},{"$f":"SUBTOTAL(109,TržbyZPredaja[Percentuálna zmena oproti predchádzajúcemu obdobiu])","v":{"v":0,"d":"0.00%"}},{"$f":"SUBTOTAL(109,TržbyZPredaja[Percentuálna zmena oproti rozpočtu])","v":{"v":0,"d":"0.00%"}}]

{"sheet":"Príjmy","index":2,"n_rows":7,"n_cols":9,"rows_kept":7,"merged":[[0,7,2,8]]}
[null,{"$f":"Názov_Zošita","v":"Výkaz ziskov a strát"}]
[null,{"$f":"Názov_spoločnosti","v":"Názov spoločnosti"},"Uvádza sa v tisícoch"]
[null,"Príjmy",{"$f":"IFERROR(Príjmy[[#Totals],[Aktuálne obdobie]],\"-\")","v":0}]
[null,"Typ príjmu","Popis","Predchádzajúce obdobie","Rozpočet","Aktuálne obdobie","Aktuálne obdobie ako % z predaja","Percentuálna zmena oproti predchádzajúcemu obdobiu","Percentuálna zmena oproti rozpočtu"]
[null,"Príjmy","Iné príjmy",{"$nulls":3},{"$f":"IFERROR(IF(Tržby_z_predaja=0,\"-\",Príjmy[Aktuálne obdobie]/Tržby_z_predaja),\"-\")","v":"-"},{"$f":"IFERROR(IF(Príjmy[[#This Row],[Predchádzajúce obdobie]]=Príjmy[[#This Row],[Aktuálne obdobie]],0,IF(Príjmy[[#This Row],[Aktuálne obdobie]]>Príjmy[[#This Row],[Predchádzajúce obdobie]],ABS((Príjmy[[#This Row],[Aktuálne obdobie]]/Príjmy[[#This Row],[Predchádzajúce obdobie]])-1),IF(AND(Príjmy[[#This Row],[Aktuálne obdobie]]<Príjmy[[#This Row],[Predchádzajúce obdobie]],Príjmy[[#This Row],[Predchádzajúce obdobie]]<0),-((Príjmy[[#This Row],[Aktuálne obdobie]]/Príjmy[[#This Row],[Predchádzajúce obdobie]])-1),(Príjmy[[#This Row],[Aktuálne obdobie]]/Príjmy[[#This Row],[Predchádzajúce obdobie]])-1))),\"-\")","v":{"v":0,"d":"0.00%"}},{"$f":"IFERROR(IF(Príjmy[[#This Row],[Rozpočet]]=Príjmy[[#This Row],[Aktuálne obdobie]],0,IF(Príjmy[[#This Row],[Aktuálne obdobie]]>Príjmy[[#This Row],[Rozpočet]],ABS((Príjmy[[#This Row],[Aktuálne obdobie]]/Príjmy[[#This Row],[Rozpočet]])-1),IF(AND(Príjmy[[#This Row],[Aktuálne obdobie]]<Príjmy[[#This Row],[Rozpočet]],Príjmy[[#This Row],[Rozpočet]]<0),-((Príjmy[[#This Row],[Aktuálne obdobie]]/Príjmy[[#This Row],[Rozpočet]])-1),(Príjmy[[#This Row],[Aktuálne obdobie]]/Príjmy[[#This Row],[Rozpočet]])-1))),\"-\")","v":{"v":0,"d":"0.00%"}}]
[{"$nulls":6},{"$f":"IFERROR(IF(Tržby_z_predaja=0,\"-\",Príjmy[Aktuálne obdobie]/Tržby_z_predaja),\"-\")","v":"-"},{"$f":"IFERROR(IF(Príjmy[[#This Row],[Predchádzajúce obdobie]]=Príjmy[[#This Row],[Aktuálne obdobie]],0,IF(Príjmy[[#This Row],[Aktuálne obdobie]]>Príjmy[[#This Row],[Predchádzajúce obdobie]],ABS((Príjmy[[#This Row],[Aktuálne obdobie]]/Príjmy[[#This Row],[Predchádzajúce obdobie]])-1),IF(AND(Príjmy[[#This Row],[Aktuálne obdobie]]<Príjmy[[#This Row],[Predchádzajúce obdobie]],Príjmy[[#This Row],[Predchádzajúce obdobie]]<0),-((Príjmy[[#This Row],[Aktuálne obdobie]]/Príjmy[[#This Row],[Predchádzajúce obdobie]])-1),(Príjmy[[#This Row],[Aktuálne obdobie]]/Príjmy[[#This Row],[Predchádzajúce obdobie]])-1))),\"-\")","v":{"v":0,"d":"0.00%"}},{"$f":"IFERROR(IF(Príjmy[[#This Row],[Rozpočet]]=Príjmy[[#This Row],[Aktuálne obdobie]],0,IF(Príjmy[[#This Row],[Aktuálne obdobie]]>Príjmy[[#This Row],[Rozpočet]],ABS((Príjmy[[#This Row],[Aktuálne obdobie]]/Príjmy[[#This Row],[Rozpočet]])-1),IF(AND(Príjmy[[#This Row],[Aktuálne obdobie]]<Príjmy[[#This Row],[Rozpočet]],Príjmy[[#This Row],[Rozpočet]]<0),-((Príjmy[[#This Row],[Aktuálne obdobie]]/Príjmy[[#This Row],[Rozpočet]])-1),(Príjmy[[#This Row],[Aktuálne obdobie]]/Príjmy[[#This Row],[Rozpočet]])-1))),\"-\")","v":{"v":0,"d":"0.00%"}}]
[null,"Celkový príjem za predaj",null,{"$f":"SUBTOTAL(109,Príjmy[Predchádzajúce obdobie])","v":0},{"$f":"SUBTOTAL(109,Príjmy[Rozpočet])","v":0},{"$f":"SUBTOTAL(109,Príjmy[Aktuálne obdobie])","v":0},{"$f":"SUBTOTAL(109,Príjmy[Aktuálne obdobie ako % z predaja])","v":{"v":0,"d":"0.00%"}},{"$f":"SUBTOTAL(109,Príjmy[Percentuálna zmena oproti predchádzajúcemu obdobiu])","v":{"v":0,"d":"0.00%"}},{"$f":"SUBTOTAL(109,Príjmy[Percentuálna zmena oproti rozpočtu])","v":{"v":0,"d":"0.00%"}}]

{"sheet":"Výdavky","index":3,"n_rows":25,"n_cols":9,"rows_kept":25,"merged":[[0,7,2,8]]}
[null,{"$f":"Názov_Zošita","v":"Výkaz ziskov a strát"}]
[null,{"$f":"Názov_spoločnosti","v":"Názov spoločnosti"},"Uvádza sa v tisícoch"]
[null,"Prevádzkové náklady",{"$f":"IFERROR(PrevádzkovéNáklady[[#Totals],[Aktuálne obdobie]],\"-\")","v":0}]
[null,"Typ výdavku","Popis","Predchádzajúce obdobie","Rozpočet","Aktuálne obdobie","Aktuálne obdobie ako % z predaja","Percentuálna zmena oproti predchádzajúcemu obdobiu","Percentuálna zmena oproti rozpočtu"]
[null,"Predaj a marketing","Reklama",{"$nulls":3},{"$f":"IFERROR(IF(Tržby_z_predaja=0,\"-\",PrevádzkovéNáklady[Aktuálne obdobie]/Tržby_z_predaja),\"-\")","v":"-"},{"$f":"IFERROR(IF(PrevádzkovéNáklady[[#This Row],[Predchádzajúce obdobie]]=PrevádzkovéNáklady[[#This Row],[Aktuálne obdobie]],0,IF(PrevádzkovéNáklady[[#This Row],[Aktuálne obdobie]]>PrevádzkovéNáklady[[#This Row],[Predchádzajúce obdobie]],ABS((PrevádzkovéNáklady[[#This Row],[Aktuálne obdobie]]/PrevádzkovéNáklady[[#This Row],[Predchádzajúce obdobie]])-1),IF(AND(PrevádzkovéNáklady[[#This Row],[Aktuálne obdobie]]<PrevádzkovéNáklady[[#This Row],[Predchádzajúce obdobie]],PrevádzkovéNáklady[[#This Row],[Predchádzajúce obdobie]]<0),-((PrevádzkovéNáklady[[#This Row],[Aktuálne obdobie]]/PrevádzkovéNáklady[[#This Row],[Predchádzajúce obdobie]])-1),(PrevádzkovéNáklady[[#This Row],[Aktuálne obdobie]]/PrevádzkovéNáklady[[#This Row],[Predchádzajúce obdobie]])-1))),\"-\")","v":{"v":0,"d":"0.00%"}},{"$f":"IFERROR(IF(PrevádzkovéNáklady[[#This Row],[Rozpočet]]=PrevádzkovéNáklady[[#This Row],[Aktuálne obdobie]],0,IF(PrevádzkovéNáklady[[#This Row],[Aktuálne obdobie]]>PrevádzkovéNáklady[[#This Row],[Rozpočet]],ABS((PrevádzkovéNáklady[[#This Row],[Aktuálne obdobie]]/PrevádzkovéNáklady[[#This Row],[Rozpočet]])-1),IF(AND(PrevádzkovéNáklady[[#This Row],[Aktuálne obdobie]]<PrevádzkovéNáklady[[#This Row],[Rozpočet]],PrevádzkovéNáklady[[#This Row],[Rozpočet]]<0),-((PrevádzkovéNáklady[[#This Row],[Aktuálne obdobie]]/PrevádzkovéNáklady[[#This Row],[Rozpočet]])-1),(PrevádzkovéNáklady[[#This Row],[Aktuálne obdobie]]/PrevádzkovéNáklady[[#This Row],[Rozpočet]])-1))),\"-\")","v":{"v":0,"d":"0.00%"}}]
[null,"Predaj a marketing","Priama reklama",{"$nulls":3},{"$f":"IFERROR(IF(Tržby_z_predaja=0,\"-\",PrevádzkovéNáklady[Aktuálne obdobie]/Tržby_z_predaja),\"-\")","v":"-"},{"$f":"IFERROR(IF(PrevádzkovéNáklady[[#This Row],[Predchádzajúce obdobie]]=PrevádzkovéNáklady[[#This Row],[Aktuálne obdobie]],0,IF(PrevádzkovéNáklady[[#This Row],[Aktuálne obdobie]]>PrevádzkovéNáklady[[#This Row],[Predchádzajúce obdobie]],ABS((PrevádzkovéNáklady[[#This Row],[Aktuálne obdobie]]/PrevádzkovéNáklady[[#This Row],[Predchádzajúce obdobie]])-1),IF(AND(PrevádzkovéNáklady[[#This Row],[Aktuálne obdobie]]<PrevádzkovéNáklady[[#This Row],[Predchádzajúce obdobie]],PrevádzkovéNáklady[[#This Row],[Predchádzajúce obdobie]]<0),-((PrevádzkovéNáklady[[#This Row],[Aktuálne obdobie]]/PrevádzkovéNáklady[[#This Row],[Predchádzajúce obdobie]])-1),(PrevádzkovéNáklady[[#This Row],[Aktuálne obdobie]]/PrevádzkovéNáklady[[#This Row],[Predchádzajúce obdobie]])-1))),\"-\")","v":{"v":0,"d":"0.00%"}},{"$f":"IFERROR(IF(PrevádzkovéNáklady[[#This Row],[Rozpočet]]=PrevádzkovéNáklady[[#This Row],[Aktuálne obdobie]],0,IF(PrevádzkovéNáklady[[#This Row],[Aktuálne obdobie]]>PrevádzkovéNáklady[[#This Row],[Rozpočet]],ABS((PrevádzkovéNáklady[[#This Row],[Aktuálne obdobie]]/PrevádzkovéNáklady[[#This Row],[Rozpočet]])-1),IF(AND(PrevádzkovéNáklady[[#This Row],[Aktuálne obdobie]]<PrevádzkovéNáklady[[#This Row],[Rozpočet]],PrevádzkovéNáklady[[#This Row],[Rozpočet]]<0),-((PrevádzkovéNáklady[[#This Row],[Aktuálne obdobie]]/PrevádzkovéNáklady[[#This Row],[Rozpočet]])-1),(PrevádzkovéNáklady[[#This Row],[Aktuálne obdobie]]/PrevádzkovéNáklady[[#This Row],[Rozpočet]])-1))),\"-\")","v":{"v":0,"d":"0.00%"}}]
[null,"Predaj a marketing","Iné náklady (zadajte)",{"$nulls":3},{"$f":"IFERROR(IF(Tržby_z_predaja=0,\"-\",PrevádzkovéNáklady[Aktuálne obdobie]/Tržby_z_predaja),\"-\")","v":"-"},{"$f":"IFERROR(IF(PrevádzkovéNáklady[[#This Row],[Predchádzajúce obdobie]]=PrevádzkovéNáklady[[#This Row],[Aktuálne obdobie]],0,IF(PrevádzkovéNáklady[[#This Row],[Aktuálne obdobie]]>PrevádzkovéNáklady[[#This Row],[Predchádzajúce obdobie]],ABS((PrevádzkovéNáklady[[#This Row],[Aktuálne obdobie]]/PrevádzkovéNáklady[[#This Row],[Predchádzajúce obdobie]])-1),IF(AND(PrevádzkovéNáklady[[#This Row],[Aktuálne obdobie]]<PrevádzkovéNáklady[[#This Row],[Predchádzajúce obdobie]],PrevádzkovéNáklady[[#This Row],[Predchádzajúce obdobie]]<0),-((PrevádzkovéNáklady[[#This Row],[Aktuálne obdobie]]/PrevádzkovéNáklady[[#This Row],[Predchádzajúce obdobie]])-1),(PrevádzkovéNáklady[[#This Row],[Aktuálne obdobie]]/PrevádzkovéNáklady[[#This Row],[Predchádzajúce obdobie]])-1))),\"-\")","v":{"v":0,"d":"0.00%"}},{"$f":"IFERROR(IF(PrevádzkovéNáklady[[#This Row],[Rozpočet]]=PrevádzkovéNáklady[[#This Row],[Aktuálne obdobie]],0,IF(PrevádzkovéNáklady[[#This Row],[Aktuálne obdobie]]>PrevádzkovéNáklady[[#This Row],[Rozpočet]],ABS((PrevádzkovéNáklady[[#This Row],[Aktuálne obdobie]]/PrevádzkovéNáklady[[#This Row],[Rozpočet]])-1),IF(AND(PrevádzkovéNáklady[[#This Row],[Aktuálne obdobie]]<PrevádzkovéNáklady[[#This Row],[Rozpočet]],PrevádzkovéNáklady[[#This Row],[Rozpočet]]<0),-((PrevádzkovéNáklady[[#This Row],[Aktuálne obdobie]]/PrevádzkovéNáklady[[#This Row],[Rozpočet]])-1),(PrevádzkovéNáklady[[#This Row],[Aktuálne obdobie]]/PrevádzkovéNáklady[[#This Row],[Rozpočet]])-1))),\"-\")","v":{"v":0,"d":"0.00%"}}]
[null,"Predaj a marketing","Iné náklady (zadajte)",{"$nulls":3},{"$f":"IFERROR(IF(Tržby_z_predaja=0,\"-\",PrevádzkovéNáklady[Aktuálne obdobie]/Tržby_z_predaja),\"-\")","v":"-"},{"$f":"IFERROR(IF(PrevádzkovéNáklady[[#This Row],[Predchádzajúce obdobie]]=PrevádzkovéNáklady[[#This Row],[Aktuálne obdobie]],0,IF(PrevádzkovéNáklady[[#This Row],[Aktuálne obdobie]]>PrevádzkovéNáklady[[#This Row],[Predchádzajúce obdobie]],ABS((PrevádzkovéNáklady[[#This Row],[Aktuálne obdobie]]/PrevádzkovéNáklady[[#This Row],[Predchádzajúce obdobie]])-1),IF(AND(PrevádzkovéNáklady[[#This Row],[Aktuálne obdobie]]<PrevádzkovéNáklady[[#This Row],[Predchádzajúce obdobie]],PrevádzkovéNáklady[[#This Row],[Predchádzajúce obdobie]]<0),-((PrevádzkovéNáklady[[#This Row],[Aktuálne obdobie]]/PrevádzkovéNáklady[[#This Row],[Predchádzajúce obdobie]])-1),(PrevádzkovéNáklady[[#This Row],[Aktuálne obdobie]]/PrevádzkovéNáklady[[#This Row],[Predchádzajúce obdobie]])-1))),\"-\")","v":{"v":0,"d":"0.00%"}},{"$f":"IFERROR(IF(PrevádzkovéNáklady[[#This Row],[Rozpočet]]=PrevádzkovéNáklady[[#This Row],[Aktuálne obdobie]],0,IF(PrevádzkovéNáklady[[#This Row],[Aktuálne obdobie]]>PrevádzkovéNáklady[[#This Row],[Rozpočet]],ABS((PrevádzkovéNáklady[[#This Row],[Aktuálne obdobie]]/PrevádzkovéNáklady[[#This Row],[Rozpočet]])-1),IF(AND(PrevádzkovéNáklady[[#This Row],[Aktuálne obdobie]]<PrevádzkovéNáklady[[#This Row],[Rozpočet]],PrevádzkovéNáklady[[#This Row],[Rozpočet]]<0),-((PrevádzkovéNáklady[[#This Row],[Aktuálne obdobie]]/PrevádzkovéNáklady[[#This Row],[Rozpočet]])-1),(PrevádzkovéNáklady[[#This Row],[Aktuálne obdobie]]/PrevádzkovéNáklady[[#This Row],[Rozpočet]])-1))),\"-\")","v":{"v":0,"d":"0.00%"}}]
[null,"Výskum a vývoj","Technologické licencie",{"$nulls":3},{"$f":"IFERROR(IF(Tržby_z_predaja=0,\"-\",PrevádzkovéNáklady[Aktuálne obdobie]/Tržby_z_predaja),\"-\")","v":"-"},{"$f":"IFERROR(IF(PrevádzkovéNáklady[[#This Row],[Predchádzajúce obdobie]]=PrevádzkovéNáklady[[#This Row],[Aktuálne obdobie]],0,IF(PrevádzkovéNáklady[[#This Row],[Aktuálne obdobie]]>PrevádzkovéNáklady[[#This Row],[Predchádzajúce obdobie]],ABS((PrevádzkovéNáklady[[#This Row],[Aktuálne obdobie]]/PrevádzkovéNáklady[[#This Row],[Predchádzajúce obdobie]])-1),IF(AND(PrevádzkovéNáklady[[#This Row],[Aktuálne obdobie]]<PrevádzkovéNáklady[[#This Row],[Predchádzajúce obdobie]],PrevádzkovéNáklady[[#This Row],[Predchádzajúce obdobie]]<0),-((PrevádzkovéNáklady[[#This Row],[Aktuálne obdobie]]/PrevádzkovéNáklady[[#This Row],[Predchádzajúce obdobie]])-1),(PrevádzkovéNáklady[[#This Row],[Aktuálne obdobie]]/PrevádzkovéNáklady[[#This Row],[Predchádzajúce obdobie]])-1))),\"-\")","v":{"v":0,"d":"0.00%"}},{"$f":"IFERROR(IF(PrevádzkovéNáklady[[#This Row],[Rozpočet]]=PrevádzkovéNáklady[[#This Row],[Aktuálne obdobie]],0,IF(PrevádzkovéNáklady[[#This Row],[Aktuálne obdobie]]>PrevádzkovéNáklady[[#This Row],[Rozpočet]],ABS((PrevádzkovéNáklady[[#This Row],[Aktuálne obdobie]]/PrevádzkovéNáklady[[#This Row],[Rozpočet]])-1),IF(AND(PrevádzkovéNáklady[[#This Row],[Aktuálne obdobie]]<PrevádzkovéNáklady[[#This Row],[Rozpočet]],PrevádzkovéNáklady[[#This Row],[Rozpočet]]<0),-((PrevádzkovéNáklady[[#This Row],[Aktuálne obdobie]]/PrevádzkovéNáklady[[#This Row],[Rozpočet]])-1),(PrevádzkovéNáklady[[#This Row],[Aktuálne obdobie]]/PrevádzkovéNáklady[[#This Row],[Rozpočet]])-1))),\"-\")","v":{"v":0,"d":"0.00%"}}]
[null,"Výskum a vývoj","Patenty ",{"$nulls":3},{"$f":"IFERROR(IF(Tržby_z_predaja=0,\"-\",PrevádzkovéNáklady[Aktuálne obdobie]/Tržby_z_predaja),\"-\")","v":"-"},{"$f":"IFERROR(IF(PrevádzkovéNáklady[[#This Row],[Predchádzajúce obdobie]]=PrevádzkovéNáklady[[#This Row],[Aktuálne obdobie]],0,IF(PrevádzkovéNáklady[[#This Row],[Aktuálne obdobie]]>PrevádzkovéNáklady[[#This Row],[Predchádzajúce obdobie]],ABS((PrevádzkovéNáklady[[#This Row],[Aktuálne obdobie]]/PrevádzkovéNáklady[[#This Row],[Predchádzajúce obdobie]])-1),IF(AND(PrevádzkovéNáklady[[#This Row],[Aktuálne obdobie]]<PrevádzkovéNáklady[[#This Row],[Predchádzajúce obdobie]],PrevádzkovéNáklady[[#This Row],[Predchádzajúce obdobie]]<0),-((PrevádzkovéNáklady[[#This Row],[Aktuálne obdobie]]/PrevádzkovéNáklady[[#This Row],[Predchádzajúce obdobie]])-1),(PrevádzkovéNáklady[[#This Row],[Aktuálne obdobie]]/PrevádzkovéNáklady[[#This Row],[Predchádzajúce obdobie]])-1))),\"-\")","v":{"v":0,"d":"0.00%"}},{"$f":"IFERROR(IF(PrevádzkovéNáklady[[#This Row],[Rozpočet]]=PrevádzkovéNáklady[[#This Row],[Aktuálne obdobie]],0,IF(PrevádzkovéNáklady[[#This Row],[Aktuálne obdobie]]>PrevádzkovéNáklady[[#This Row],[Rozpočet]],ABS((PrevádzkovéNáklady[[#This Row],[Aktuálne obdobie]]/PrevádzkovéNáklady[[#This Row],[Rozpočet]])-1),IF(AND(PrevádzkovéNáklady[[#This Row],[Aktuálne obdobie]]<PrevádzkovéNáklady[[#This Row],[Rozpočet]],PrevádzkovéNáklady[[#This Row],[Rozpočet]]<0),-((PrevádzkovéNáklady[[#This Row],[Aktuálne obdobie]]/PrevádzkovéNáklady[[#This Row],[Rozpočet]])-1),(PrevádzkovéNáklady[[#This Row],[Aktuálne obdobie]]/PrevádzkovéNáklady[[#This Row],[Rozpočet]])-1))),\"-\")","v":{"v":0,"d":"0.00%"}}]
[null,"Výskum a vývoj","Iné náklady (zadajte)",{"$nulls":3},{"$f":"IFERROR(IF(Tržby_z_predaja=0,\"-\",PrevádzkovéNáklady[Aktuálne obdobie]/Tržby_z_predaja),\"-\")","v":"-"},{"$f":"IFERROR(IF(PrevádzkovéNáklady[[#This Row],[Predchádzajúce obdobie]]=PrevádzkovéNáklady[[#This Row],[Aktuálne obdobie]],0,IF(PrevádzkovéNáklady[[#This Row],[Aktuálne obdobie]]>PrevádzkovéNáklady[[#This Row],[Predchádzajúce obdobie]],ABS((PrevádzkovéNáklady[[#This Row],[Aktuálne obdobie]]/PrevádzkovéNáklady[[#This Row],[Predchádzajúce obdobie]])-1),IF(AND(PrevádzkovéNáklady[[#This Row],[Aktuálne obdobie]]<PrevádzkovéNáklady[[#This Row],[Predchádzajúce obdobie]],PrevádzkovéNáklady[[#This Row],[Predchádzajúce obdobie]]<0),-((PrevádzkovéNáklady[[#This Row],[Aktuálne obdobie]]/PrevádzkovéNáklady[[#This Row],[Predchádzajúce obdobie]])-1),(PrevádzkovéNáklady[[#This Row],[Aktuálne obdobie]]/PrevádzkovéNáklady[[#This Row],[Predchádzajúce obdobie]])-1))),\"-\")","v":{"v":0,"d":"0.00%"}},{"$f":"IFERROR(IF(PrevádzkovéNáklady[[#This Row],[Rozpočet]]=PrevádzkovéNáklady[[#This Row],[Aktuálne obdobie]],0,IF(PrevádzkovéNáklady[[#This Row],[Aktuálne obdobie]]>PrevádzkovéNáklady[[#This Row],[Rozpočet]],ABS((PrevádzkovéNáklady[[#This Row],[Aktuálne obdobie]]/PrevádzkovéNáklady[[#This Row],[Rozpočet]])-1),IF(AND(PrevádzkovéNáklady[[#This Row],[Aktuálne obdobie]]<PrevádzkovéNáklady[[#This Row],[Rozpočet]],PrevádzkovéNáklady[[#This Row],[Rozpočet]]<0),-((PrevádzkovéNáklady[[#This Row],[Aktuálne obdobie]]/PrevádzkovéNáklady[[#This Row],[Rozpočet]])-1),(PrevádzkovéNáklady[[#This Row],[Aktuálne obdobie]]/PrevádzkovéNáklady[[#This Row],[Rozpočet]])-1))),\"-\")","v":{"v":0,"d":"0.00%"}}]
[null,"Výskum a vývoj","Iné náklady (zadajte)",{"$nulls":3},{"$f":"IFERROR(IF(Tržby_z_predaja=0,\"-\",PrevádzkovéNáklady[Aktuálne obdobie]/Tržby_z_predaja),\"-\")","v":"-"},{"$f":"IFERROR(IF(PrevádzkovéNáklady[[#This Row],[Predchádzajúce obdobie]]=PrevádzkovéNáklady[[#This Row],[Aktuálne obdobie]],0,IF(PrevádzkovéNáklady[[#This Row],[Aktuálne obdobie]]>PrevádzkovéNáklady[[#This Row],[Predchádzajúce obdobie]],ABS((PrevádzkovéNáklady[[#This Row],[Aktuálne obdobie]]/PrevádzkovéNáklady[[#This Row],[Predchádzajúce obdobie]])-1),IF(AND(PrevádzkovéNáklady[[#This Row],[Aktuálne obdobie]]<PrevádzkovéNáklady[[#This Row],[Predchádzajúce obdobie]],PrevádzkovéNáklady[[#This Row],[Predchádzajúce obdobie]]<0),-((PrevádzkovéNáklady[[#This Row],[Aktuálne obdobie]]/PrevádzkovéNáklady[[#This Row],[Predchádzajúce obdobie]])-1),(PrevádzkovéNáklady[[#This Row],[Aktuálne obdobie]]/PrevádzkovéNáklady[[#This Row],[Predchádzajúce obdobie]])-1))),\"-\")","v":{"v":0,"d":"0.00%"}},{"$f":"IFERROR(IF(PrevádzkovéNáklady[[#This Row],[Rozpočet]]=PrevádzkovéNáklady[[#This Row],[Aktuálne obdobie]],0,IF(PrevádzkovéNáklady[[#This Row],[Aktuálne obdobie]]>PrevádzkovéNáklady[[#This Row],[Rozpočet]],ABS((PrevádzkovéNáklady[[#This Row],[Aktuálne obdobie]]/PrevádzkovéNáklady[[#This Row],[Rozpočet]])-1),IF(AND(PrevádzkovéNáklady[[#This Row],[Aktuálne obdobie]]<PrevádzkovéNáklady[[#This Row],[Rozpočet]],PrevádzkovéNáklady[[#This Row],[Rozpočet]]<0),-((PrevádzkovéNáklady[[#This Row],[Aktuálne obdobie]]/PrevádzkovéNáklady[[#This Row],[Rozpočet]])-1),(PrevádzkovéNáklady[[#This Row],[Aktuálne obdobie]]/PrevádzkovéNáklady[[#This Row],[Rozpočet]])-1))),\"-\")","v":{"v":0,"d":"0.00%"}}]
[null,"Všeobecné a administratíva","Mzdy a platy",{"$nulls":3},{"$f":"IFERROR(IF(Tržby_z_predaja=0,\"-\",PrevádzkovéNáklady[Aktuálne obdobie]/Tržby_z_predaja),\"-\")","v":"-"},{"$f":"IFERROR(IF(PrevádzkovéNáklady[[#This Row],[Predchádzajúce obdobie]]=PrevádzkovéNáklady[[#This Row],[Aktuálne obdobie]],0,IF(PrevádzkovéNáklady[[#This Row],[Aktuálne obdobie]]>PrevádzkovéNáklady[[#This Row],[Predchádzajúce obdobie]],ABS((PrevádzkovéNáklady[[#This Row],[Aktuálne obdobie]]/PrevádzkovéNáklady[[#This Row],[Predchádzajúce obdobie]])-1),IF(AND(PrevádzkovéNáklady[[#This Row],[Aktuálne obdobie]]<PrevádzkovéNáklady[[#This Row],[Predchádzajúce obdobie]],PrevádzkovéNáklady[[#This Row],[Predchádzajúce obdobie]]<0),-((PrevádzkovéNáklady[[#This Row],[Aktuálne obdobie]]/PrevádzkovéNáklady[[#This Row],[Predchádzajúce obdobie]])-1),(PrevádzkovéNáklady[[#This Row],[Aktuálne obdobie]]/PrevádzkovéNáklady[[#This Row],[Predchádzajúce obdobie]])-1))),\"-\")","v":{"v":0,"d":"0.00%"}},{"$f":"IFERROR(IF(PrevádzkovéNáklady[[#This Row],[Rozpočet]]=PrevádzkovéNáklady[[#This Row],[Aktuálne obdobie]],0,IF(PrevádzkovéNáklady[[#This Row],[Aktuálne obdobie]]>PrevádzkovéNáklady[[#This Row],[Rozpočet]],ABS((PrevádzkovéNáklady[[#This Row],[Aktuálne obdobie]]/PrevádzkovéNáklady[[#This Row],[Rozpočet]])-1),IF(AND(PrevádzkovéNáklady[[#This Row],[Aktuálne obdobie]]<PrevádzkovéNáklady[[#This Row],[Rozpočet]],PrevádzkovéNáklady[[#This Row],[Rozpočet]]<0),-((PrevádzkovéNáklady[[#This Row],[Aktuálne obdobie]]/PrevádzkovéNáklady[[#This Row],[Rozpočet]])-1),(PrevádzkovéNáklady[[#This Row],[Aktuálne obdobie]]/PrevádzkovéNáklady[[#This Row],[Rozpočet]])-1))),\"-\")","v":{"v":0,"d":"0.00%"}}]
[null,"Všeobecné a administratíva","Dodávané služby",{"$nulls":3},{"$f":"IFERROR(IF(Tržby_z_predaja=0,\"-\",PrevádzkovéNáklady[Aktuálne obdobie]/Tržby_z_predaja),\"-\")","v":"-"},{"$f":"IFERROR(IF(PrevádzkovéNáklady[[#This Row],[Predchádzajúce obdobie]]=PrevádzkovéNáklady[[#This Row],[Aktuálne obdobie]],0,IF(PrevádzkovéNáklady[[#This Row],[Aktuálne obdobie]]>PrevádzkovéNáklady[[#This Row],[Predchádzajúce obdobie]],ABS((PrevádzkovéNáklady[[#This Row],[Aktuálne obdobie]]/PrevádzkovéNáklady[[#This Row],[Predchádzajúce obdobie]])-1),IF(AND(PrevádzkovéNáklady[[#This Row],[Aktuálne obdobie]]<PrevádzkovéNáklady[[#This Row],[Predchádzajúce obdobie]],PrevádzkovéNáklady[[#This Row],[Predchádzajúce obdobie]]<0),-((PrevádzkovéNáklady[[#This Row],[Aktuálne obdobie]]/PrevádzkovéNáklady[[#This Row],[Predchádzajúce obdobie]])-1),(PrevádzkovéNáklady[[#This Row],[Aktuálne obdobie]]/PrevádzkovéNáklady[[#This Row],[Predchádzajúce obdobie]])-1))),\"-\")","v":{"v":0,"d":"0.00%"}},{"$f":"IFERROR(IF(PrevádzkovéNáklady[[#This Row],[Rozpočet]]=PrevádzkovéNáklady[[#This Row],[Aktuálne obdobie]],0,IF(PrevádzkovéNáklady[[#This Row],[Aktuálne obdobie]]>PrevádzkovéNáklady[[#This Row],[Rozpočet]],ABS((PrevádzkovéNáklady[[#This Row],[Aktuálne obdobie]]/PrevádzkovéNáklady[[#This Row],[Rozpočet]])-1),IF(AND(PrevádzkovéNáklady[[#This Row],[Aktuálne obdobie]]<PrevádzkovéNáklady[[#This Row],[Rozpočet]],PrevádzkovéNáklady[[#This Row],[Rozpočet]]<0),-((PrevádzkovéNáklady[[#This Row],[Aktuálne obdobie]]/PrevádzkovéNáklady[[#This Row],[Rozpočet]])-1),(PrevádzkovéNáklady[[#This Row],[Aktuálne obdobie]]/PrevádzkovéNáklady[[#This Row],[Rozpočet]])-1))),\"-\")","v":{"v":0,"d":"0.00%"}}]
[null,"Všeobecné a administratíva","Zásoby",{"$nulls":3},{"$f":"IFERROR(IF(Tržby_z_predaja=0,\"-\",PrevádzkovéNáklady[Aktuálne obdobie]/Tržby_z_predaja),\"-\")","v":"-"},{"$f":"IFERROR(IF(PrevádzkovéNáklady[[#This Row],[Predchádzajúce obdobie]]=PrevádzkovéNáklady[[#This Row],[Aktuálne obdobie]],0,IF(PrevádzkovéNáklady[[#This Row],[Aktuálne obdobie]]>PrevádzkovéNáklady[[#This Row],[Predchádzajúce obdobie]],ABS((PrevádzkovéNáklady[[#This Row],[Aktuálne obdobie]]/PrevádzkovéNáklady[[#This Row],[Predchádzajúce obdobie]])-1),IF(AND(PrevádzkovéNáklady[[#This Row],[Aktuálne obdobie]]<PrevádzkovéNáklady[[#This Row],[Predchádzajúce obdobie]],PrevádzkovéNáklady[[#This Row],[Predchádzajúce obdobie]]<0),-((PrevádzkovéNáklady[[#This Row],[Aktuálne obdobie]]/PrevádzkovéNáklady[[#This Row],[Predchádzajúce obdobie]])-1),(PrevádzkovéNáklady[[#This Row],[Aktuálne obdobie]]/PrevádzkovéNáklady[[#This Row],[Predchádzajúce obdobie]])-1))),\"-\")","v":{"v":0,"d":"0.00%"}},{"$f":"IFERROR(IF(PrevádzkovéNáklady[[#This Row],[Rozpočet]]=PrevádzkovéNáklady[[#This Row],[Aktuálne obdobie]],0,IF(PrevádzkovéNáklady[[#This Row],[Aktuálne obdobie]]>PrevádzkovéNáklady[[#This Row],[Rozpočet]],ABS((PrevádzkovéNáklady[[#This Row],[Aktuálne obdobie]]/PrevádzkovéNáklady[[#This Row],[Rozpočet]])-1),IF(AND(PrevádzkovéNáklady[[#This Row],[Aktuálne obdobie]]<PrevádzkovéNáklady[[#This Row],[Rozpočet]],PrevádzkovéNáklady[[#This Row],[Rozpočet]]<0),-((PrevádzkovéNáklady[[#This Row],[Aktuálne obdobie]]/PrevádzkovéNáklady[[#This Row],[Rozpočet]])-1),(PrevádzkovéNáklady[[#This Row],[Aktuálne obdobie]]/PrevádzkovéNáklady[[#This Row],[Rozpočet]])-1))),\"-\")","v":{"v":0,"d":"0.00%"}}]
[null,"Všeobecné a administratíva","Jedlo a zábava",{"$nulls":3},{"$f":"IFERROR(IF(Tržby_z_predaja=0,\"-\",PrevádzkovéNáklady[Aktuálne obdobie]/Tržby_z_predaja),\"-\")","v":"-"},{"$f":"IFERROR(IF(PrevádzkovéNáklady[[#This Row],[Predchádzajúce obdobie]]=PrevádzkovéNáklady[[#This Row],[Aktuálne obdobie]],0,IF(PrevádzkovéNáklady[[#This Row],[Aktuálne obdobie]]>PrevádzkovéNáklady[[#This Row],[Predchádzajúce obdobie]],ABS((PrevádzkovéNáklady[[#This Row],[Aktuálne obdobie]]/PrevádzkovéNáklady[[#This Row],[Predchádzajúce obdobie]])-1),IF(AND(PrevádzkovéNáklady[[#This Row],[Aktuálne obdobie]]<PrevádzkovéNáklady[[#This Row],[Predchádzajúce obdobie]],PrevádzkovéNáklady[[#This Row],[Predchádzajúce obdobie]]<0),-((PrevádzkovéNáklady[[#This Row],[Aktuálne obdobie]]/PrevádzkovéNáklady[[#This Row],[Predchádzajúce obdobie]])-1),(PrevádzkovéNáklady[[#This Row],[Aktuálne obdobie]]/PrevádzkovéNáklady[[#This Row],[Predchádzajúce obdobie]])-1))),\"-\")","v":{"v":0,"d":"0.00%"}},{"$f":"IFERROR(IF(PrevádzkovéNáklady[[#This Row],[Rozpočet]]=PrevádzkovéNáklady[[#This Row],[Aktuálne obdobie]],0,IF(PrevádzkovéNáklady[[#This Row],[Aktuálne obdobie]]>PrevádzkovéNáklady[[#This Row],[Rozpočet]],ABS((PrevádzkovéNáklady[[#This Row],[Aktuálne obdobie]]/PrevádzkovéNáklady[[#This Row],[Rozpočet]])-1),IF(AND(PrevádzkovéNáklady[[#This Row],[Aktuálne obdobie]]<PrevádzkovéNáklady[[#This Row],[Rozpočet]],PrevádzkovéNáklady[[#This Row],[Rozpočet]]<0),-((PrevádzkovéNáklady[[#This Row],[Aktuálne obdobie]]/PrevádzkovéNáklady[[#This Row],[Rozpočet]])-1),(PrevádzkovéNáklady[[#This Row],[Aktuálne obdobie]]/PrevádzkovéNáklady[[#This Row],[Rozpočet]])-1))),\"-\")","v":{"v":0,"d":"0.00%"}}]
[null,"Všeobecné a administratíva","Nájomné",{"$nulls":3},{"$f":"IFERROR(IF(Tržby_z_predaja=0,\"-\",PrevádzkovéNáklady[Aktuálne obdobie]/Tržby_z_predaja),\"-\")","v":"-"},{"$f":"IFERROR(IF(PrevádzkovéNáklady[[#This Row],[Predchádzajúce obdobie]]=PrevádzkovéNáklady[[#This Row],[Aktuálne obdobie]],0,IF(PrevádzkovéNáklady[[#This Row],[Aktuálne obdobie]]>PrevádzkovéNáklady[[#This Row],[Predchádzajúce obdobie]],ABS((PrevádzkovéNáklady[[#This Row],[Aktuálne obdobie]]/PrevádzkovéNáklady[[#This Row],[Predchádzajúce obdobie]])-1),IF(AND(PrevádzkovéNáklady[[#This Row],[Aktuálne obdobie]]<PrevádzkovéNáklady[[#This Row],[Predchádzajúce obdobie]],PrevádzkovéNáklady[[#This Row],[Predchádzajúce obdobie]]<0),-((PrevádzkovéNáklady[[#This Row],[Aktuálne obdobie]]/PrevádzkovéNáklady[[#This Row],[Predchádzajúce obdobie]])-1),(PrevádzkovéNáklady[[#This Row],[Aktuálne obdobie]]/PrevádzkovéNáklady[[#This Row],[Predchádzajúce obdobie]])-1))),\"-\")","v":{"v":0,"d":"0.00%"}},{"$f":"IFERROR(IF(PrevádzkovéNáklady[[#This Row],[Rozpočet]]=PrevádzkovéNáklady[[#This Row],[Aktuálne obdobie]],0,IF(PrevádzkovéNáklady[[#This Row],[Aktuálne obdobie]]>PrevádzkovéNáklady[[#This Row],[Rozpočet]],ABS((PrevádzkovéNáklady[[#This Row],[Aktuálne obdobie]]/PrevádzkovéNáklady[[#This Row],[Rozpočet]])-1),IF(AND(PrevádzkovéNáklady[[#This Row],[Aktuálne obdobie]]<PrevádzkovéNáklady[[#This Row],[Rozpočet]],PrevádzkovéNáklady[[#This Row],[Rozpočet]]<0),-((PrevádzkovéNáklady[[#This Row],[Aktuálne obdobie]]/PrevádzkovéNáklady[[#This Row],[Rozpočet]])-1),(PrevádzkovéNáklady[[#This Row],[Aktuálne obdobie]]/PrevádzkovéNáklady[[#This Row],[Rozpočet]])-1))),\"-\")","v":{"v":0,"d":"0.00%"}}]
[null,"Všeobecné a administratíva","Telefón",{"$nulls":3},{"$f":"IFERROR(IF(Tržby_z_predaja=0,\"-\",PrevádzkovéNáklady[Aktuálne obdobie]/Tržby_z_predaja),\"-\")","v":"-"},{"$f":"IFERROR(IF(PrevádzkovéNáklady[[#This Row],[Predchádzajúce obdobie]]=PrevádzkovéNáklady[[#This Row],[Aktuálne obdobie]],0,IF(PrevádzkovéNáklady[[#This Row],[Aktuálne obdobie]]>PrevádzkovéNáklady[[#This Row],[Predchádzajúce obdobie]],ABS((PrevádzkovéNáklady[[#This Row],[Aktuálne obdobie]]/PrevádzkovéNáklady[[#This Row],[Predchádzajúce obdobie]])-1),IF(AND(PrevádzkovéNáklady[[#This Row],[Aktuálne obdobie]]<PrevádzkovéNáklady[[#This Row],[Predchádzajúce obdobie]],PrevádzkovéNáklady[[#This Row],[Predchádzajúce obdobie]]<0),-((PrevádzkovéNáklady[[#This Row],[Aktuálne obdobie]]/PrevádzkovéNáklady[[#This Row],[Predchádzajúce obdobie]])-1),(PrevádzkovéNáklady[[#This Row],[Aktuálne obdobie]]/PrevádzkovéNáklady[[#This Row],[Predchádzajúce obdobie]])-1))),\"-\")","v":{"v":0,"d":"0.00%"}},{"$f":"IFERROR(IF(PrevádzkovéNáklady[[#This Row],[Rozpočet]]=PrevádzkovéNáklady[[#This Row],[Aktuálne obdobie]],0,IF(PrevádzkovéNáklady[[#This Row],[Aktuálne obdobie]]>PrevádzkovéNáklady[[#This Row],[Rozpočet]],ABS((PrevádzkovéNáklady[[#This Row],[Aktuálne obdobie]]/PrevádzkovéNáklady[[#This Row],[Rozpočet]])-1),IF(AND(PrevádzkovéNáklady[[#This Row],[Aktuálne obdobie]]<PrevádzkovéNáklady[[#This Row],[Rozpočet]],PrevádzkovéNáklady[[#This Row],[Rozpočet]]<0),-((PrevádzkovéNáklady[[#This Row],[Aktuálne obdobie]]/PrevádzkovéNáklady[[#This Row],[Rozpočet]])-1),(PrevádzkovéNáklady[[#This Row],[Aktuálne obdobie]]/PrevádzkovéNáklady[[#This Row],[Rozpočet]])-1))),\"-\")","v":{"v":0,"d":"0.00%"}}]
[null,"Všeobecné a administratíva","Služby",{"$nulls":3},{"$f":"IFERROR(IF(Tržby_z_predaja=0,\"-\",PrevádzkovéNáklady[Aktuálne obdobie]/Tržby_z_predaja),\"-\")","v":"-"},{"$f":"IFERROR(IF(PrevádzkovéNáklady[[#This Row],[Predchádzajúce obdobie]]=PrevádzkovéNáklady[[#This Row],[Aktuálne obdobie]],0,IF(PrevádzkovéNáklady[[#This Row],[Aktuálne obdobie]]>PrevádzkovéNáklady[[#This Row],[Predchádzajúce obdobie]],ABS((PrevádzkovéNáklady[[#This Row],[Aktuálne obdobie]]/PrevádzkovéNáklady[[#This Row],[Predchádzajúce obdobie]])-1),IF(AND(PrevádzkovéNáklady[[#This Row],[Aktuálne obdobie]]<PrevádzkovéNáklady[[#This Row],[Predchádzajúce obdobie]],PrevádzkovéNáklady[[#This Row],[Predchádzajúce obdobie]]<0),-((PrevádzkovéNáklady[[#This Row],[Aktuálne obdobie]]/PrevádzkovéNáklady[[#This Row],[Predchádzajúce obdobie]])-1),(PrevádzkovéNáklady[[#This Row],[Aktuálne obdobie]]/PrevádzkovéNáklady[[#This Row],[Predchádzajúce obdobie]])-1))),\"-\")","v":{"v":0,"d":"0.00%"}},{"$f":"IFERROR(IF(PrevádzkovéNáklady[[#This Row],[Rozpočet]]=PrevádzkovéNáklady[[#This Row],[Aktuálne obdobie]],0,IF(PrevádzkovéNáklady[[#This Row],[Aktuálne obdobie]]>PrevádzkovéNáklady[[#This Row],[Rozpočet]],ABS((PrevádzkovéNáklady[[#This Row],[Aktuálne obdobie]]/PrevádzkovéNáklady[[#This Row],[Rozpočet]])-1),IF(AND(PrevádzkovéNáklady[[#This Row],[Aktuálne obdobie]]<PrevádzkovéNáklady[[#This Row],[Rozpočet]],PrevádzkovéNáklady[[#This Row],[Rozpočet]]<0),-((PrevádzkovéNáklady[[#This Row],[Aktuálne obdobie]]/PrevádzkovéNáklady[[#This Row],[Rozpočet]])-1),(PrevádzkovéNáklady[[#This Row],[Aktuálne obdobie]]/PrevádzkovéNáklady[[#This Row],[Rozpočet]])-1))),\"-\")","v":{"v":0,"d":"0.00%"}}]
[null,"Všeobecné a administratíva","Odpisy",{"$nulls":3},{"$f":"IFERROR(IF(Tržby_z_predaja=0,\"-\",PrevádzkovéNáklady[Aktuálne obdobie]/Tržby_z_predaja),\"-\")","v":"-"},{"$f":"IFERROR(IF(PrevádzkovéNáklady[[#This Row],[Predchádzajúce obdobie]]=PrevádzkovéNáklady[[#This Row],[Aktuálne obdobie]],0,IF(PrevádzkovéNáklady[[#This Row],[Aktuálne obdobie]]>PrevádzkovéNáklady[[#This Row],[Predchádzajúce obdobie]],ABS((PrevádzkovéNáklady[[#This Row],[Aktuálne obdobie]]/PrevádzkovéNáklady[[#This Row],[Predchádzajúce obdobie]])-1),IF(AND(PrevádzkovéNáklady[[#This Row],[Aktuálne obdobie]]<PrevádzkovéNáklady[[#This Row],[Predchádzajúce obdobie]],PrevádzkovéNáklady[[#This Row],[Predchádzajúce obdobie]]<0),-((PrevádzkovéNáklady[[#This Row],[Aktuálne obdobie]]/PrevádzkovéNáklady[[#This Row],[Predchádzajúce obdobie]])-1),(PrevádzkovéNáklady[[#This Row],[Aktuálne obdobie]]/PrevádzkovéNáklady[[#This Row],[Predchádzajúce obdobie]])-1))),\"-\")","v":{"v":0,"d":"0.00%"}},{"$f":"IFERROR(IF(PrevádzkovéNáklady[[#This Row],[Rozpočet]]=PrevádzkovéNáklady[[#This Row],[Aktuálne obdobie]],0,IF(PrevádzkovéNáklady[[#This Row],[Aktuálne obdobie]]>PrevádzkovéNáklady[[#This Row],[Rozpočet]],ABS((PrevádzkovéNáklady[[#This Row],[Aktuálne obdobie]]/PrevádzkovéNáklady[[#This Row],[Rozpočet]])-1),IF(AND(PrevádzkovéNáklady[[#This Row],[Aktuálne obdobie]]<PrevádzkovéNáklady[[#This Row],[Rozpočet]],PrevádzkovéNáklady[[#This Row],[Rozpočet]]<0),-((PrevádzkovéNáklady[[#This Row],[Aktuálne obdobie]]/PrevádzkovéNáklady[[#This Row],[Rozpočet]])-1),(PrevádzkovéNáklady[[#This Row],[Aktuálne obdobie]]/PrevádzkovéNáklady[[#This Row],[Rozpočet]])-1))),\"-\")","v":{"v":0,"d":"0.00%"}}]
[null,"Všeobecné a administratíva","Poistenie",{"$nulls":3},{"$f":"IFERROR(IF(Tržby_z_predaja=0,\"-\",PrevádzkovéNáklady[Aktuálne obdobie]/Tržby_z_predaja),\"-\")","v":"-"},{"$f":"IFERROR(IF(PrevádzkovéNáklady[[#This Row],[Predchádzajúce obdobie]]=PrevádzkovéNáklady[[#This Row],[Aktuálne obdobie]],0,IF(PrevádzkovéNáklady[[#This Row],[Aktuálne obdobie]]>PrevádzkovéNáklady[[#This Row],[Predchádzajúce obdobie]],ABS((PrevádzkovéNáklady[[#This Row],[Aktuálne obdobie]]/PrevádzkovéNáklady[[#This Row],[Predchádzajúce obdobie]])-1),IF(AND(PrevádzkovéNáklady[[#This Row],[Aktuálne obdobie]]<PrevádzkovéNáklady[[#This Row],[Predchádzajúce obdobie]],PrevádzkovéNáklady[[#This Row],[Predchádzajúce obdobie]]<0),-((PrevádzkovéNáklady[[#This Row],[Aktuálne obdobie]]/PrevádzkovéNáklady[[#This Row],[Predchádzajúce obdobie]])-1),(PrevádzkovéNáklady[[#This Row],[Aktuálne obdobie]]/PrevádzkovéNáklady[[#This Row],[Predchádzajúce obdobie]])-1))),\"-\")","v":{"v":0,"d":"0.00%"}},{"$f":"IFERROR(IF(PrevádzkovéNáklady[[#This Row],[Rozpočet]]=PrevádzkovéNáklady[[#This Row],[Aktuálne obdobie]],0,IF(PrevádzkovéNáklady[[#This Row],[Aktuálne obdobie]]>PrevádzkovéNáklady[[#This Row],[Rozpočet]],ABS((PrevádzkovéNáklady[[#This Row],[Aktuálne obdobie]]/PrevádzkovéNáklady[[#This Row],[Rozpočet]])-1),IF(AND(PrevádzkovéNáklady[[#This Row],[Aktuálne obdobie]]<PrevádzkovéNáklady[[#This Row],[Rozpočet]],PrevádzkovéNáklady[[#This Row],[Rozpočet]]<0),-((PrevádzkovéNáklady[[#This Row],[Aktuálne obdobie]]/PrevádzkovéNáklady[[#This Row],[Rozpočet]])-1),(PrevádzkovéNáklady[[#This Row],[Aktuálne obdobie]]/PrevádzkovéNáklady[[#This Row],[Rozpočet]])-1))),\"-\")","v":{"v":0,"d":"0.00%"}}]
[null,"Všeobecné a administratíva","Opravy a údržba",{"$nulls":3},{"$f":"IFERROR(IF(Tržby_z_predaja=0,\"-\",PrevádzkovéNáklady[Aktuálne obdobie]/Tržby_z_predaja),\"-\")","v":"-"},{"$f":"IFERROR(IF(PrevádzkovéNáklady[[#This Row],[Predchádzajúce obdobie]]=PrevádzkovéNáklady[[#This Row],[Aktuálne obdobie]],0,IF(PrevádzkovéNáklady[[#This Row],[Aktuálne obdobie]]>PrevádzkovéNáklady[[#This Row],[Predchádzajúce obdobie]],ABS((PrevádzkovéNáklady[[#This Row],[Aktuálne obdobie]]/PrevádzkovéNáklady[[#This Row],[Predchádzajúce obdobie]])-1),IF(AND(PrevádzkovéNáklady[[#This Row],[Aktuálne obdobie]]<PrevádzkovéNáklady[[#This Row],[Predchádzajúce obdobie]],PrevádzkovéNáklady[[#This Row],[Predchádzajúce obdobie]]<0),-((PrevádzkovéNáklady[[#This Row],[Aktuálne obdobie]]/PrevádzkovéNáklady[[#This Row],[Predchádzajúce obdobie]])-1),(PrevádzkovéNáklady[[#This Row],[Aktuálne obdobie]]/PrevádzkovéNáklady[[#This Row],[Predchádzajúce obdobie]])-1))),\"-\")","v":{"v":0,"d":"0.00%"}},{"$f":"IFERROR(IF(PrevádzkovéNáklady[[#This Row],[Rozpočet]]=PrevádzkovéNáklady[[#This Row],[Aktuálne obdobie]],0,IF(PrevádzkovéNáklady[[#This Row],[Aktuálne obdobie]]>PrevádzkovéNáklady[[#This Row],[Rozpočet]],ABS((PrevádzkovéNáklady[[#This Row],[Aktuálne obdobie]]/PrevádzkovéNáklady[[#This Row],[Rozpočet]])-1),IF(AND(PrevádzkovéNáklady[[#This Row],[Aktuálne obdobie]]<PrevádzkovéNáklady[[#This Row],[Rozpočet]],PrevádzkovéNáklady[[#This Row],[Rozpočet]]<0),-((PrevádzkovéNáklady[[#This Row],[Aktuálne obdobie]]/PrevádzkovéNáklady[[#This Row],[Rozpočet]])-1),(PrevádzkovéNáklady[[#This Row],[Aktuálne obdobie]]/PrevádzkovéNáklady[[#This Row],[Rozpočet]])-1))),\"-\")","v":{"v":0,"d":"0.00%"}}]
[null,"Všeobecné a administratíva","Iné náklady (zadajte)",{"$nulls":3},{"$f":"IFERROR(IF(Tržby_z_predaja=0,\"-\",PrevádzkovéNáklady[Aktuálne obdobie]/Tržby_z_predaja),\"-\")","v":"-"},{"$f":"IFERROR(IF(PrevádzkovéNáklady[[#This Row],[Predchádzajúce obdobie]]=PrevádzkovéNáklady[[#This Row],[Aktuálne obdobie]],0,IF(PrevádzkovéNáklady[[#This Row],[Aktuálne obdobie]]>PrevádzkovéNáklady[[#This Row],[Predchádzajúce obdobie]],ABS((PrevádzkovéNáklady[[#This Row],[Aktuálne obdobie]]/PrevádzkovéNáklady[[#This Row],[Predchádzajúce obdobie]])-1),IF(AND(PrevádzkovéNáklady[[#This Row],[Aktuálne obdobie]]<PrevádzkovéNáklady[[#This Row],[Predchádzajúce obdobie]],PrevádzkovéNáklady[[#This Row],[Predchádzajúce obdobie]]<0),-((PrevádzkovéNáklady[[#This Row],[Aktuálne obdobie]]/PrevádzkovéNáklady[[#This Row],[Predchádzajúce obdobie]])-1),(PrevádzkovéNáklady[[#This Row],[Aktuálne obdobie]]/PrevádzkovéNáklady[[#This Row],[Predchádzajúce obdobie]])-1))),\"-\")","v":{"v":0,"d":"0.00%"}},{"$f":"IFERROR(IF(PrevádzkovéNáklady[[#This Row],[Rozpočet]]=PrevádzkovéNáklady[[#This Row],[Aktuálne obdobie]],0,IF(PrevádzkovéNáklady[[#This Row],[Aktuálne obdobie]]>PrevádzkovéNáklady[[#This Row],[Rozpočet]],ABS((PrevádzkovéNáklady[[#This Row],[Aktuálne obdobie]]/PrevádzkovéNáklady[[#This Row],[Rozpočet]])-1),IF(AND(PrevádzkovéNáklady[[#This Row],[Aktuálne obdobie]]<PrevádzkovéNáklady[[#This Row],[Rozpočet]],PrevádzkovéNáklady[[#This Row],[Rozpočet]]<0),-((PrevádzkovéNáklady[[#This Row],[Aktuálne obdobie]]/PrevádzkovéNáklady[[#This Row],[Rozpočet]])-1),(PrevádzkovéNáklady[[#This Row],[Aktuálne obdobie]]/PrevádzkovéNáklady[[#This Row],[Rozpočet]])-1))),\"-\")","v":{"v":0,"d":"0.00%"}}]
[null,"Všeobecné a administratíva","Iné náklady (zadajte)",{"$nulls":3},{"$f":"IFERROR(IF(Tržby_z_predaja=0,\"-\",PrevádzkovéNáklady[Aktuálne obdobie]/Tržby_z_predaja),\"-\")","v":"-"},{"$f":"IFERROR(IF(PrevádzkovéNáklady[[#This Row],[Predchádzajúce obdobie]]=PrevádzkovéNáklady[[#This Row],[Aktuálne obdobie]],0,IF(PrevádzkovéNáklady[[#This Row],[Aktuálne obdobie]]>PrevádzkovéNáklady[[#This Row],[Predchádzajúce obdobie]],ABS((PrevádzkovéNáklady[[#This Row],[Aktuálne obdobie]]/PrevádzkovéNáklady[[#This Row],[Predchádzajúce obdobie]])-1),IF(AND(PrevádzkovéNáklady[[#This Row],[Aktuálne obdobie]]<PrevádzkovéNáklady[[#This Row],[Predchádzajúce obdobie]],PrevádzkovéNáklady[[#This Row],[Predchádzajúce obdobie]]<0),-((PrevádzkovéNáklady[[#This Row],[Aktuálne obdobie]]/PrevádzkovéNáklady[[#This Row],[Predchádzajúce obdobie]])-1),(PrevádzkovéNáklady[[#This Row],[Aktuálne obdobie]]/PrevádzkovéNáklady[[#This Row],[Predchádzajúce obdobie]])-1))),\"-\")","v":{"v":0,"d":"0.00%"}},{"$f":"IFERROR(IF(PrevádzkovéNáklady[[#This Row],[Rozpočet]]=PrevádzkovéNáklady[[#This Row],[Aktuálne obdobie]],0,IF(PrevádzkovéNáklady[[#This Row],[Aktuálne obdobie]]>PrevádzkovéNáklady[[#This Row],[Rozpočet]],ABS((PrevádzkovéNáklady[[#This Row],[Aktuálne obdobie]]/PrevádzkovéNáklady[[#This Row],[Rozpočet]])-1),IF(AND(PrevádzkovéNáklady[[#This Row],[Aktuálne obdobie]]<PrevádzkovéNáklady[[#This Row],[Rozpočet]],PrevádzkovéNáklady[[#This Row],[Rozpočet]]<0),-((PrevádzkovéNáklady[[#This Row],[Aktuálne obdobie]]/PrevádzkovéNáklady[[#This Row],[Rozpočet]])-1),(PrevádzkovéNáklady[[#This Row],[Aktuálne obdobie]]/PrevádzkovéNáklady[[#This Row],[Rozpočet]])-1))),\"-\")","v":{"v":0,"d":"0.00%"}}]
[null,"Celkové prevádzkové náklady",null,{"$f":"SUBTOTAL(109,PrevádzkovéNáklady[Predchádzajúce obdobie])","v":0},{"$f":"SUBTOTAL(109,PrevádzkovéNáklady[Rozpočet])","v":0},{"$f":"SUBTOTAL(109,PrevádzkovéNáklady[Aktuálne obdobie])","v":0},{"$f":"SUBTOTAL(109,PrevádzkovéNáklady[Aktuálne obdobie ako % z predaja])","v":{"v":0,"d":"0.00%"}},{"$f":"SUBTOTAL(109,PrevádzkovéNáklady[Percentuálna zmena oproti predchádzajúcemu obdobiu])","v":{"v":0,"d":"0.00%"}},{"$f":"SUBTOTAL(109,PrevádzkovéNáklady[Percentuálna zmena oproti rozpočtu])","v":{"v":0,"d":"0.00%"}}]

{"sheet":"Dane","index":4,"n_rows":10,"n_cols":9,"rows_kept":10,"merged":[[0,7,2,8]]}
[null,{"$f":"Názov_Zošita","v":"Výkaz ziskov a strát"}]
[null,{"$f":"Názov_spoločnosti","v":"Názov spoločnosti"},"Uvádza sa v tisícoch"]
[null,"Dane",{"$f":"IFERROR(Dane[[#Totals],[Aktuálne obdobie]],\"-\")","v":0}]
[null,"Typ","Popis","Predchádzajúce obdobie","Rozpočet","Aktuálne obdobie","Aktuálne obdobie ako % z predaja","Percentuálna zmena oproti predchádzajúcemu obdobiu","Percentuálna zmena oproti rozpočtu"]
[null,"Dane","Dane z príjmu",{"$nulls":3},{"$f":"IFERROR(IF(Tržby_z_predaja=0,\"-\",Dane[Aktuálne obdobie]/Tržby_z_predaja),\"-\")","v":"-"},{"$f":"IFERROR(IF(Dane[[#This Row],[Predchádzajúce obdobie]]=Dane[[#This Row],[Aktuálne obdobie]],0,IF(Dane[[#This Row],[Aktuálne obdobie]]>Dane[[#This Row],[Predchádzajúce obdobie]],ABS((Dane[[#This Row],[Aktuálne obdobie]]/Dane[[#This Row],[Predchádzajúce obdobie]])-1),IF(AND(Dane[[#This Row],[Aktuálne obdobie]]<Dane[[#This Row],[Predchádzajúce obdobie]],Dane[[#This Row],[Predchádzajúce obdobie]]<0),-((Dane[[#This Row],[Aktuálne obdobie]]/Dane[[#This Row],[Predchádzajúce obdobie]])-1),(Dane[[#This Row],[Aktuálne obdobie]]/Dane[[#This Row],[Predchádzajúce obdobie]])-1))),\"-\")","v":{"v":0,"d":"0.00%"}},{"$f":"IFERROR(IF(Dane[[#This Row],[Rozpočet]]=Dane[[#This Row],[Aktuálne obdobie]],0,IF(Dane[[#This Row],[Aktuálne obdobie]]>Dane[[#This Row],[Rozpočet]],ABS((Dane[[#This Row],[Aktuálne obdobie]]/Dane[[#This Row],[Rozpočet]])-1),IF(AND(Dane[[#This Row],[Aktuálne obdobie]]<Dane[[#This Row],[Rozpočet]],Dane[[#This Row],[Rozpočet]]<0),-((Dane[[#This Row],[Aktuálne obdobie]]/Dane[[#This Row],[Rozpočet]])-1),(Dane[[#This Row],[Aktuálne obdobie]]/Dane[[#This Row],[Rozpočet]])-1))),\"-\")","v":{"v":0,"d":"0.00%"}}]
[null,"Dane","Dane zo mzdy",{"$nulls":3},{"$f":"IFERROR(IF(Tržby_z_predaja=0,\"-\",Dane[Aktuálne obdobie]/Tržby_z_predaja),\"-\")","v":"-"},{"$f":"IFERROR(IF(Dane[[#This Row],[Predchádzajúce obdobie]]=Dane[[#This Row],[Aktuálne obdobie]],0,IF(Dane[[#This Row],[Aktuálne obdobie]]>Dane[[#This Row],[Predchádzajúce obdobie]],ABS((Dane[[#This Row],[Aktuálne obdobie]]/Dane[[#This Row],[Predchádzajúce obdobie]])-1),IF(AND(Dane[[#This Row],[Aktuálne obdobie]]<Dane[[#This Row],[Predchádzajúce obdobie]],Dane[[#This Row],[Predchádzajúce obdobie]]<0),-((Dane[[#This Row],[Aktuálne obdobie]]/Dane[[#This Row],[Predchádzajúce obdobie]])-1),(Dane[[#This Row],[Aktuálne obdobie]]/Dane[[#This Row],[Predchádzajúce obdobie]])-1))),\"-\")","v":{"v":0,"d":"0.00%"}},{"$f":"IFERROR(IF(Dane[[#This Row],[Rozpočet]]=Dane[[#This Row],[Aktuálne obdobie]],0,IF(Dane[[#This Row],[Aktuálne obdobie]]>Dane[[#This Row],[Rozpočet]],ABS((Dane[[#This Row],[Aktuálne obdobie]]/Dane[[#This Row],[Rozpočet]])-1),IF(AND(Dane[[#This Row],[Aktuálne obdobie]]<Dane[[#This Row],[Rozpočet]],Dane[[#This Row],[Rozpočet]]<0),-((Dane[[#This Row],[Aktuálne obdobie]]/Dane[[#This Row],[Rozpočet]])-1),(Dane[[#This Row],[Aktuálne obdobie]]/Dane[[#This Row],[Rozpočet]])-1))),\"-\")","v":{"v":0,"d":"0.00%"}}]
[null,"Dane","Dane z nehnuteľnosti",{"$nulls":3},{"$f":"IFERROR(IF(Tržby_z_predaja=0,\"-\",Dane[Aktuálne obdobie]/Tržby_z_predaja),\"-\")","v":"-"},{"$f":"IFERROR(IF(Dane[[#This Row],[Predchádzajúce obdobie]]=Dane[[#This Row],[Aktuálne obdobie]],0,IF(Dane[[#This Row],[Aktuálne obdobie]]>Dane[[#This Row],[Predchádzajúce obdobie]],ABS((Dane[[#This Row],[Aktuálne obdobie]]/Dane[[#This Row],[Predchádzajúce obdobie]])-1),IF(AND(Dane[[#This Row],[Aktuálne obdobie]]<Dane[[#This Row],[Predchádzajúce obdobie]],Dane[[#This Row],[Predchádzajúce obdobie]]<0),-((Dane[[#This Row],[Aktuálne obdobie]]/Dane[[#This Row],[Predchádzajúce obdobie]])-1),(Dane[[#This Row],[Aktuálne obdobie]]/Dane[[#This Row],[Predchádzajúce obdobie]])-1))),\"-\")","v":{"v":0,"d":"0.00%"}},{"$f":"IFERROR(IF(Dane[[#This Row],[Rozpočet]]=Dane[[#This Row],[Aktuálne obdobie]],0,IF(Dane[[#This Row],[Aktuálne obdobie]]>Dane[[#This Row],[Rozpočet]],ABS((Dane[[#This Row],[Aktuálne obdobie]]/Dane[[#This Row],[Rozpočet]])-1),IF(AND(Dane[[#This Row],[Aktuálne obdobie]]<Dane[[#This Row],[Rozpočet]],Dane[[#This Row],[Rozpočet]]<0),-((Dane[[#This Row],[Aktuálne obdobie]]/Dane[[#This Row],[Rozpočet]])-1),(Dane[[#This Row],[Aktuálne obdobie]]/Dane[[#This Row],[Rozpočet]])-1))),\"-\")","v":{"v":0,"d":"0.00%"}}]
[null,"Dane","Ďalšie dane (zadajte)",{"$nulls":3},{"$f":"IFERROR(IF(Tržby_z_predaja=0,\"-\",Dane[Aktuálne obdobie]/Tržby_z_predaja),\"-\")","v":"-"},{"$f":"IFERROR(IF(Dane[[#This Row],[Predchádzajúce obdobie]]=Dane[[#This Row],[Aktuálne obdobie]],0,IF(Dane[[#This Row],[Aktuálne obdobie]]>Dane[[#This Row],[Predchádzajúce obdobie]],ABS((Dane[[#This Row],[Aktuálne obdobie]]/Dane[[#This Row],[Predchádzajúce obdobie]])-1),IF(AND(Dane[[#This Row],[Aktuálne obdobie]]<Dane[[#This Row],[Predchádzajúce obdobie]],Dane[[#This Row],[Predchádzajúce obdobie]]<0),-((Dane[[#This Row],[Aktuálne obdobie]]/Dane[[#This Row],[Predchádzajúce obdobie]])-1),(Dane[[#This Row],[Aktuálne obdobie]]/Dane[[#This Row],[Predchádzajúce obdobie]])-1))),\"-\")","v":{"v":0,"d":"0.00%"}},{"$f":"IFERROR(IF(Dane[[#This Row],[Rozpočet]]=Dane[[#This Row],[Aktuálne obdobie]],0,IF(Dane[[#This Row],[Aktuálne obdobie]]>Dane[[#This Row],[Rozpočet]],ABS((Dane[[#This Row],[Aktuálne obdobie]]/Dane[[#This Row],[Rozpočet]])-1),IF(AND(Dane[[#This Row],[Aktuálne obdobie]]<Dane[[#This Row],[Rozpočet]],Dane[[#This Row],[Rozpočet]]<0),-((Dane[[#This Row],[Aktuálne obdobie]]/Dane[[#This Row],[Rozpočet]])-1),(Dane[[#This Row],[Aktuálne obdobie]]/Dane[[#This Row],[Rozpočet]])-1))),\"-\")","v":{"v":0,"d":"0.00%"}}]
[null,"Dane","Ďalšie dane (zadajte)",{"$nulls":3},{"$f":"IFERROR(IF(Tržby_z_predaja=0,\"-\",Dane[Aktuálne obdobie]/Tržby_z_predaja),\"-\")","v":"-"},{"$f":"IFERROR(IF(Dane[[#This Row],[Predchádzajúce obdobie]]=Dane[[#This Row],[Aktuálne obdobie]],0,IF(Dane[[#This Row],[Aktuálne obdobie]]>Dane[[#This Row],[Predchádzajúce obdobie]],ABS((Dane[[#This Row],[Aktuálne obdobie]]/Dane[[#This Row],[Predchádzajúce obdobie]])-1),IF(AND(Dane[[#This Row],[Aktuálne obdobie]]<Dane[[#This Row],[Predchádzajúce obdobie]],Dane[[#This Row],[Predchádzajúce obdobie]]<0),-((Dane[[#This Row],[Aktuálne obdobie]]/Dane[[#This Row],[Predchádzajúce obdobie]])-1),(Dane[[#This Row],[Aktuálne obdobie]]/Dane[[#This Row],[Predchádzajúce obdobie]])-1))),\"-\")","v":{"v":0,"d":"0.00%"}},{"$f":"IFERROR(IF(Dane[[#This Row],[Rozpočet]]=Dane[[#This Row],[Aktuálne obdobie]],0,IF(Dane[[#This Row],[Aktuálne obdobie]]>Dane[[#This Row],[Rozpočet]],ABS((Dane[[#This Row],[Aktuálne obdobie]]/Dane[[#This Row],[Rozpočet]])-1),IF(AND(Dane[[#This Row],[Aktuálne obdobie]]<Dane[[#This Row],[Rozpočet]],Dane[[#This Row],[Rozpočet]]<0),-((Dane[[#This Row],[Aktuálne obdobie]]/Dane[[#This Row],[Rozpočet]])-1),(Dane[[#This Row],[Aktuálne obdobie]]/Dane[[#This Row],[Rozpočet]])-1))),\"-\")","v":{"v":0,"d":"0.00%"}}]
[null,"Dane celkom",null,{"$f":"SUBTOTAL(109,Dane[Predchádzajúce obdobie])","v":0},{"$f":"SUBTOTAL(109,Dane[Rozpočet])","v":0},{"$f":"SUBTOTAL(109,Dane[Aktuálne obdobie])","v":0},{"$f":"IFERROR(SUBTOTAL(109,Dane[Aktuálne obdobie ako % z predaja]),\"-\")","v":{"v":0,"d":"0.00%"}},{"$f":"SUBTOTAL(109,Dane[Percentuálna zmena oproti predchádzajúcemu obdobiu])","v":{"v":0,"d":"0.00%"}},{"$f":"SUBTOTAL(109,Dane[Percentuálna zmena oproti rozpočtu])","v":{"v":0,"d":"0.00%"}}]

{"sheet":"Kategórie","index":5,"n_rows":8,"n_cols":2,"rows_kept":8}
[null,"Kategórie"]
[null,"Tržby z predaja"]
[null,"Náklady na predaj"]
[null,"Príjmy"]
[null,"Predaj a marketing"]
[null,"Výskum a vývoj"]
[null,"Všeobecné a administratíva"]
[null,"Dane"]